{"text_format":"1","workbook":"xlsx","n_sheets":3,"sheets":["Fiche de Course","Météo","Config"],"not_rendered":{"charts":0,"images":78,"macros":1,"external_links":0,"defined_names":41,"comments":0,"pivot_tables":0},"unopened":[],"bounds":{"document_bytes":16777216,"sheet_cells":100000,"rows_first":2000,"rows_last":500,"rows_between":2000,"halvings":0,"cell_chars":16384,"cell_head_chars":4096},"cells_cut":0,"cells_raw":0,"read":"whole","date_system":"1900"}

{"sheet":"Fiche de Course","index":0,"n_rows":52,"n_cols":13,"rows_kept":52,"cut":false,"hidden":false,"merged":[[47,9,47,12],[28,1,28,6],[11,9,11,12],[30,9,30,12],[39,9,39,12],[15,1,15,6],[22,1,26,6],[4,1,4,6],[4,9,4,12],[10,1,10,6],[1,6,1,12],[2,6,2,13],[1,1,2,5]]}
[]
[null,{"$error":"#VALUE!"},null,null,null,null,"Finale - Rover All Series - OceAsia '23"]
[null,null,null,null,null,null,{"$f":"IF(Config!$V$2=\"FR\",Config!A2,Config!B2)","v":"FICHE DE COURSE"}]
[]
[null,{"$f":"IF(Config!$V$2=\"FR\",Config!A3,Config!B3)","v":"PARAMÈTRES DU SALON"},null,null,null,null,null,null,null,{"$f":"IF(Config!$U$2=\"NO\",\"\",IF(Config!$V$2=\"FR\",Config!A45,Config!B45))","v":"PARAMÈTRES DE QUALIFICATIONS"}]
[null,null,null,{"$f":"IF(Config!$V$2=\"FR\",Config!A4,Config!B4)","v":"Mode Salon"},"Entraînement / Qualification / Course d'endurance"," ",{"$f":"VLOOKUP(E6,Config!D2:F6,3,FALSE)","v":"Entraînement / Qualification / Course d'endurance"},null,null,{"$f":"IF(Config!$U$2=\"NO\",\"\",IF(Config!$V$2=\"FR\",Config!A46,Config!B46))","v":"Limite de temps"},"10 mn"," ",{"$f":"IF(Config!$U$2=\"NO\",\"\",K6)","v":"10 mn"}]
[null,null,null,{"$f":"IF(Config!$V$2=\"FR\",Config!A5,Config!B5)","v":"Accès au salon"},"Amis uniquement"," ",{"$f":"VLOOKUP(E7,Config!D8:F9,3,FALSE)","v":"Amis uniquement"},null,null,{"$f":"IF(Config!$U$2=\"NO\",\"\",IF(Config!$V$2=\"FR\",Config!A47,Config!B47))","v":"Heure de reprise des qualifications"},"180 s"," ",{"$f":"IF(Config!$U$2=\"NO\",\"\",K7)","v":"180 s"}]
[null,null,null,{"$f":"IF(Config!$V$2=\"FR\",Config!A6,Config!B6)","v":"Type de Course"},"Course réelle"," ",{"$f":"VLOOKUP(E8,Config!D11:F14,3,FALSE)","v":"Course réelle"},null,null,{"$f":"IF(Config!$U$2=\"NO\",\"\",IF(Config!$V$2=\"FR\",Config!A48,Config!B48))","v":"Usure pneumatique (qualifications)"},"x0"," ",{"$f":"IF(Config!$U$2=\"NO\",\"\",IF(K8=\"x0\",IF(Config!$V$2=\"FR\",\"Non\",\"No\"),IF(K8=\"S/Race\",IF(Config!$V$2=\"FR\",\"Conditions de course\",\"Race Condition\"),K8)))","v":"Non"}]
[null,null,null,{"$f":"IF(Config!$V$2=\"FR\",Config!A7,Config!B7)","v":"Nombre max. de participants"},16," ",{"$f":"E9","v":16},null,null,{"$f":"IF(Config!$U$2=\"NO\",\"\",IF(Config!$V$2=\"FR\",Config!A49,Config!B49))","v":"Consommation de carburant (qualifications)"},"S/Race"," ",{"$f":"IF(Config!$U$2=\"NO\",\"\",IF(K9=\"x0\",IF(Config!$V$2=\"FR\",\"Non\",\"No\"),IF(K9=\"S/Race\",IF(Config!$V$2=\"FR\",\"Conditions de course\",\"Race Condition\"),K9)))","v":"Conditions de course"}]
[null,null,null,null,null,null,null,null,null,{"$f":"IF(Config!$U$2=\"NO\",\"\",IF(Config!$V$2=\"FR\",Config!A50,Config!B50))","v":"Carburant initial (qualifications)"},"S/Race"," ",{"$f":"IF(Config!$U$2=\"NO\",\"\",IF(K10=\"Défaut\",IF(Config!$V$2=\"FR\",\"Défaut\",\"Default\"),IF(K10=\"S/Race\",IF(Config!$V$2=\"FR\",\"Conditions de course\",\"Race Condition\"),K10)))","v":"Conditions de course"}]
[null,{"$f":"IF(Config!$V$2=\"FR\",Config!A8,Config!B8)","v":"PARAMÈTRES DU CIRCUIT"}]
[null,null,null,{"$f":"IF(Config!$V$2=\"FR\",Config!A9,Config!B9)","v":"Démarrage automatique"}," -- "," ",{"$f":"E12","v":" -- "},null,null,{"$f":"IF(Config!$V$2=\"FR\",Config!A51,Config!B51)","v":"PARAMÈTRES DES RÈGLES"}]
[null,null,null,{"$f":"IF(Config!$V$2=\"FR\",Config!A10,Config!B10)","v":"Circuit"},"24 Heures du Nürburgring"," ",{"$f":"E13","v":"24 Heures du Nürburgring"},null,null,{"$f":"IF(Config!$V$2=\"FR\",Config!A52,Config!B52)","v":"Filtrer par catégorie"},"Gr.3"," ",{"$f":"VLOOKUP(K13,Config!D59:F64,3,FALSE)","v":"Gr.3"}]
[null,null,null,{"$f":"IF(Config!$V$2=\"FR\",Config!A11,Config!B11)","v":"Limite de temps"},"2h"," ",{"$f":"IF(Config!C11=\"Nombre de tours\",E14&IF(Config!V2=\"FR\",\" Tours\",\" Laps\"),'Fiche de Course'!E14)","v":"2h"},null,null,{"$f":"IF(Config!$V$2=\"FR\",Config!A53,Config!B53)","v":"Limite de PP"},"No"," ",{"$f":"IF(K14=\"No\",IF(Config!$V$2=\"FR\",\"Aucune limite\",\"No Limit\"),K14)","v":"Aucune limite"}]
[null,null,null,null,null,null,null,null,null,{"$f":"IF(Config!$V$2=\"FR\",Config!A54,Config!B54)","v":"Puissance max."},271," ",{"$f":"IF(K15=\"No\",IF(Config!$V$2=\"FR\",\"Aucune limite\",\"No Limit\"),K15&\" ch\")","v":"271 ch"}]
[null,{"$f":"IF(Config!$V$2=\"FR\",Config!A12,Config!B12)","v":"PARAMÈTRES MÉTÉO / HORAIRES"},null,null,null,null,null,null,null,{"$f":"IF(Config!$V$2=\"FR\",Config!A55,Config!B55)","v":"Poids minimum"},"No"," ",{"$f":"IF(K16=\"No\",IF(Config!$V$2=\"FR\",\"Aucune limite\",\"No Limit\"),K16&\" kg\")","v":"Aucune limite"}]
[null,null,null,{"$f":"IF(Config!$V$2=\"FR\",Config!A13,Config!B13)","v":"Méthode de sélection météo"},"Météo personnalisés"," ",{"$f":"VLOOKUP(E17,Config!D16:F17,3,FALSE)","v":"Météo personnalisés"},null,null,{"$f":"IF(Config!$V$2=\"FR\",Config!A56,Config!B56)","v":"Pneus utilisables"},"Sport"," ",{"$f":"IF(K17=\"No\",IF(Config!$V$2=\"FR\",\"Aucune restriction\",\"No Limit\"),IF(K17=\"Course\",IF(Config!$V$2=\"FR\",\"Course\",\"Race\"),K17))","v":"Sport"}]
[null,null,null,{"$f":"IF(E17=\"Météo prédéfinie\",IF(Config!$V$2=\"FR\",Config!A14,Config!B14),\"\")","v":""},"S04"," ",{"$f":"IF(D18=\"\",\"\",E18)","v":""},null,null,{"$f":"IF(Config!$V$2=\"FR\",Config!A57,Config!B57)","v":"Pneus utilisables et types"}]
[null,null,null,{"$f":"IF(E17=\"Météo prédéfinie\",IF(Config!$V$2=\"FR\",Config!A15,Config!B15),\"\")","v":""},"Non"," ",{"$f":"IF(D19=\"\",\"\",VLOOKUP(E19,Config!D19:F20,3,FALSE))","v":""}]
[null,null,null,{"$f":"IF(Config!$V$2=\"FR\",Config!A17,Config!B17)","v":"Heure du jour"},"Lever du soleil"," ",{"$f":"VLOOKUP(E20,Config!D22:F32,3,FALSE)","v":"Lever du soleil"}]
[null,null,null,{"$f":"IF(E19=\"Oui\",\"\",IF(Config!$V$2=\"FR\",Config!A16,Config!B16))","v":"Taux de la période de temps variable"},"x0",null,{"$f":"IF(D21=\"\",\"\",E21)","v":"x0"}]
[]
[null,{"$f":"IF(E17=\"Météo personnalisés\", \"Insérer une copie d'écran\", G18)","v":"Insérer une copie d'écran"}]
[]
[null,null,null,null,null,null,null,null,null,{"$f":"IF(Config!$V$2=\"FR\",Config!A58,Config!B58)","v":"Type de pneus obligatoire"}]
[null,null,null,null,null,null,null,null,null,"Nitro","Ne peut être installé"," ",{"$f":"VLOOKUP(K26,Config!D66:F68,3,FALSE)","v":"Ne peut être installé"}]
[null,null,null,null,null,null,null,null,null,{"$f":"IF(Config!$V$2=\"FR\",Config!A59,Config!B59)","v":"Utilisation de karts"},"Non"," ",{"$f":"VLOOKUP(K27,Config!D19:F20,3,FALSE)","v":"Non"}]
[null,null,null,null,null,null,null,null,null,{"$f":"IF(Config!$V$2=\"FR\",Config!A60,Config!B60)","v":"Remplacement moteur"},"Interdit"," ",{"$f":"VLOOKUP(K28,Config!D68:F69,3,FALSE)","v":"Interdit"}]
[null,{"$f":"IF(Config!$V$2=\"FR\",Config!A18,Config!B18)","v":"PARAMÈTRES DE COURSE"},null,null,null,null,null,null,null,{"$f":"IF(Config!$V$2=\"FR\",Config!A61,Config!B61)","v":"Pièces de préparation"},"Aucune limite"," ",{"$f":"VLOOKUP(K29,Config!D58:F59,3,FALSE)","v":"Aucune limite"}]
[null,null,null,{"$f":"IF(Config!$V$2=\"FR\",Config!A19,Config!B19)","v":"Type de départ"},"Emplacement au départ - Vérif faux départ"," ",{"$f":"VLOOKUP(E30,Config!D34:F36,3,FALSE)","v":"Emplacement au départ - Vérif faux départ"}]
[null,null,null,{"$f":"IF(Config!$V$2=\"FR\",Config!A20,Config!B20)","v":"Ordre de départ"},"La plus rapide en premier"," ",{"$f":"VLOOKUP(E31,Config!D38:F40,3,FALSE)","v":"La plus rapide en premier"},null,null,{"$f":"IF(Config!$V$2=\"FR\",Config!A62,Config!B62)","v":"PARAMÈTRES DE PÉNALITÉS"}]
[null,null,null,{"$f":"IF(Config!$V$2=\"FR\",Config!A21,Config!B21)","v":"BoP/Préparation interdits"},"Oui"," ",{"$f":"VLOOKUP(E32,Config!D19:F20,3,FALSE)","v":"Oui"},null,null,{"$f":"IF(Config!$V$2=\"FR\",Config!A63,Config!B63)","v":"Pénalité de raccourci"},"Forte"," ",{"$f":"VLOOKUP(K32,Config!D71:F73,3,FALSE)","v":"Forte"}]
[null,null,null,{"$f":"IF(E32=\"Non\",\"\",IF(Config!$V$2=\"FR\",Config!A22,Config!B22))","v":"Options de paramètres"},{"$f":"IF(Config!AC2=0,\"Sans\",IF(Config!AC2=13,\"Tous\",\"Certaines\"))","v":"Tous"}," ",{"$f":"IF(D33=\"\",\"\",VLOOKUP(E33,Config!D42:F44,3,FALSE))","v":"Tous"},null,null,{"$f":"IF(Config!$V$2=\"FR\",Config!A64,Config!B64)","v":"Pénalité de collision (mur)"},"Pénalité de temps (mineure)"," ",{"$f":"VLOOKUP(K33,Config!D75:F77,3,FALSE)","v":"Pénalité de temps (mineure)"}]
[null,null,true,{"$f":"IF($E$32=\"Non\",\"\",IF(Config!$V$2=\"FR\",Config!A23,Config!B23))","v":"Réglage de hauteur de carrosserie"},null,true,{"$f":"IF($E$32=\"Non\",\"\",IF(Config!$V$2=\"FR\",Config!A30,Config!B30))","v":"Différentiel"},null,null,{"$f":"IF(Config!$V$2=\"FR\",Config!A65,Config!B65)","v":"Trajectoire ajustée après collision"},"Sans"," ",{"$f":"VLOOKUP(K34,Config!D79:F80,3,FALSE)","v":"Sans"}]
[null,null,true,{"$f":"IF($E$32=\"Non\",\"\",IF(Config!$V$2=\"FR\",Config!A24,Config!B24))","v":"Barre anti-roulis"},null,true,{"$f":"IF($E$32=\"Non\",\"\",IF(Config!$V$2=\"FR\",Config!A31,Config!B31))","v":"Différentiel central à vecteur de couple"},null,null,{"$f":"IF(Config!$V$2=\"FR\",Config!A66,Config!B66)","v":"Pénalité de collision (voiture)"},"Oui"," ",{"$f":"VLOOKUP(K35,Config!D19:F20,3,FALSE)","v":"Oui"}]
[null,null,true,{"$f":"IF($E$32=\"Non\",\"\",IF(Config!$V$2=\"FR\",Config!A25,Config!B25))","v":"Ratio d'amortissement"},null,true,{"$f":"IF($E$32=\"Non\",\"\",IF(Config!$V$2=\"FR\",Config!A32,Config!B32))","v":"Transmission (pas de transmission secondaire)"},null,null,{"$f":"IF(Config!$V$2=\"FR\",Config!A67,Config!B67)","v":"Pénalité de coupure de la ligne des stands"},"Activée"," ",{"$f":"VLOOKUP(K36,Config!D82:F83,3,FALSE)","v":"Activée"}]
[null,null,true,{"$f":"IF($E$32=\"Non\",\"\",IF(Config!$V$2=\"FR\",Config!A26,Config!B26))","v":"Fréquence naturelle"},null,true,{"$f":"IF($E$32=\"Non\",\"\",IF(Config!$V$2=\"FR\",Config!A33,Config!B33))","v":"Transmission (transmission secondaire)"},null,null,{"$f":"IF(Config!$V$2=\"FR\",Config!A68,Config!B68)","v":"Transparence pendant la course"},"Désactivée"," ",{"$f":"VLOOKUP(K37,Config!D71:F73,3,FALSE)","v":"Désactivée"}]
[null,null,true,{"$f":"IF($E$32=\"Non\",\"\",IF(Config!$V$2=\"FR\",Config!A27,Config!B27))","v":"Angle de carrossage négatif"},null,true,{"$f":"IF($E$32=\"Non\",\"\",\"Anti-lag\")","v":"Anti-lag"},null,null,{"$f":"IF(Config!$V$2=\"FR\",Config!A69,Config!B69)","v":"Règlement des drapeaux"},"Oui"," ",{"$f":"VLOOKUP(K38,Config!D19:F20,3,FALSE)","v":"Oui"}]
[null,null,true,{"$f":"IF($E$32=\"Non\",\"\",IF(Config!$V$2=\"FR\",Config!A28,Config!B28))","v":"Angle de pincement"},null,true,{"$f":"IF($E$32=\"Non\",\"\",IF(Config!$V$2=\"FR\",Config!A34,Config!B34))","v":"Equilibre des freins"}]
[null,null,true,{"$f":"IF($E$32=\"Non\",\"\",IF(Config!$V$2=\"FR\",Config!A29,Config!B29))","v":"Appui"},null,null,null,null,null,{"$f":"IF(Config!$V$2=\"FR\",Config!A70,Config!B70)","v":"RESTRICTIONS D'OPTIONS DE CONDUITE"}]
[null,null,null,null,null,null,null,null,null,{"$f":"IF(Config!$V$2=\"FR\",Config!A71,Config!B71)","v":"Aide au contre-braquage"},"Interdit"," ",{"$f":"VLOOKUP(K41,Config!$D$85:$F$86,3,FALSE)","v":"Interdit"}]
[null,null,null,"Boost","Aucun"," ",{"$f":"VLOOKUP(E42,Config!D46:F48,3,FALSE)","v":"Aucun"},null,null,{"$f":"IF(Config!$V$2=\"FR\",Config!A72,Config!B72)","v":"GSA"},"Interdit"," ",{"$f":"VLOOKUP(K42,Config!$D$85:$F$86,3,FALSE)","v":"Interdit"}]
[null,null,null,{"$f":"IF(Config!$V$2=\"FR\",Config!A35,Config!B35)","v":"Force d’aspiration"},"Réaliste"," ",{"$f":"VLOOKUP(E43,Config!D50:F52,3,FALSE)","v":"Réaliste"},null,null,{"$f":"IF(Config!$V$2=\"FR\",Config!A73,Config!B73)","v":"Assistant de trajectoire"},"Interdit"," ",{"$f":"VLOOKUP(K43,Config!$D$85:$F$86,3,FALSE)","v":"Interdit"}]
[null,null,null,{"$f":"IF(Config!$V$2=\"FR\",Config!A36,Config!B36)","v":"Dégâts visibles"},"Oui"," ",{"$f":"VLOOKUP(E44,Config!D19:F20,3,FALSE)","v":"Oui"},null,null,{"$f":"IF(Config!$V$2=\"FR\",Config!A74,Config!B74)","v":"Contrôle de traction"},"Aucune restriction"," ",{"$f":"VLOOKUP(K44,Config!$D$85:$F$86,3,FALSE)","v":"Aucune restriction"}]
[null,null,null,{"$f":"IF(Config!$V$2=\"FR\",Config!A37,Config!B37)","v":"Dommages mécaniques"},"Légers"," ",{"$f":"VLOOKUP(E45,Config!D54:F56,3,FALSE)","v":"Légers"},null,null,"ABS","Interdit"," ",{"$f":"VLOOKUP(K45,Config!$D$85:$F$86,3,FALSE)","v":"Interdit"}]
[null,null,null,{"$f":"IF(Config!$V$2=\"FR\",Config!A38,Config!B38)","v":"Usure pneumatique"},"x3",null,{"$f":"IF(E46=\"x0\",IF(Config!$V$2=\"FR\",\"Non\",\"No\"),E46)","v":"x3"},null,null,{"$f":"IF(Config!$V$2=\"FR\",Config!A75,Config!B75)","v":"Conduite automatique"},"Interdit"," ",{"$f":"VLOOKUP(K46,Config!$D$85:$F$86,3,FALSE)","v":"Interdit"}]
[null,null,null,{"$f":"IF(Config!$V$2=\"FR\",Config!A39,Config!B39)","v":"Consommation de carburant"},"x4"," ",{"$f":"IF(E47=\"x0\",IF(Config!$V$2=\"FR\",\"Non\",\"No\"),E47)","v":"x4"}]
[null,null,null,{"$f":"IF(E47=\"x0\",\"\",IF(Config!$V$2=\"FR\",Config!A40,Config!B40))","v":"Vitesse de ravitaillement"},"3 L/s"," ",{"$f":"IF(E47=\"x0\",\"\",E48)","v":"3 L/s"},null,null,{"$f":"IF(Config!$V$2=\"FR\",Config!A76,Config!B76)","v":"INFO SALON DE COURSE"}]
[null,null,null,{"$f":"IF(E47=\"x0\",\"\",IF(Config!$V$2=\"FR\",Config!A41,Config!B41))","v":"Carburant initial"},"Défaut"," ",{"$f":"IF(E47=\"x0\",\"\",IF(E49=\"Défaut\",IF(Config!V2=\"FR\",\"Défaut\",\"Default\"),E49))","v":"Défaut"},null,null,{"$f":"IF(Config!$V$2=\"FR\",Config!A77,Config!B77)","v":"Hote"},null,null,"Truc"]
[null,null,null,{"$f":"IF(E48=\"x0\",\"\",IF(Config!$V$2=\"FR\",Config!A42,Config!B42))","v":"Réduction de l’adhérance hors piste"},"Réaliste"," ",{"$f":"VLOOKUP(E50,Config!D51:F52,3,FALSE)","v":"Réaliste"},null,null,{"$f":"IF(Config!$V$2=\"FR\",Config!A78,Config!B78)","v":"Diffuseur"},null,null,"Pas Brunokx"]
[null,null,null,{"$f":"IF(Config!$V$2=\"FR\",Config!A43,Config!B43)","v":"Délai avant fin de course"},"180 s"," ",{"$f":"E51","v":"180 s"},null,null,{"$f":"IF(Config!$V$2=\"FR\",Config!A79,Config!B79)","v":"Organisateur"},null,null,"MSLeague"]
[null,null,null,{"$f":"IF(Config!$V$2=\"FR\",Config!A44,Config!B44)","v":"Nitro/Multiplicateur de temps"},"Def"," ",{"$f":"IF(E52=\"Def\",IF(Config!$V$2=\"FR\",\"Défaut\",\"Default\"),E52)","v":"Défaut"},null,null,{"$f":"IF(Config!$V$2=\"FR\",Config!A80,Config!B80)","v":"Commisaire"},null,null,"20 Couilles"]

{"sheet":"Météo","index":1,"n_rows":25,"n_cols":13,"rows_kept":25,"cut":false,"hidden":false,"merged":[[7,1,9,12],[24,1,24,9]]}
[]
[]
[]
[]
[null,{"$f":"IF(B6=\"Random\",Config!$AD$1,IF(B6=\"S01\",Config!$AD$2,IF(B6=\"S02\",Config!$AD$3,IF(B6=\"S03\",Config!$AD$4,IF(B6=\"S04\",Config!$AD$5,IF(B6=\"S05\",Config!$AD$6,IF(B6=\"S06\",Config!$AD$7,IF(B6=\"S07\",Config!$AD$8,IF(B6=\"S08\",Config!$AD$9,IF(B6=\"S09\",Config!$AD$10,IF(B6=\"S10\",Config!$AD$11,IF(B6=\"S11\",Config!$AD$12,IF(B6=\"S12\",Config!$AD$13,IF(B6=\"S13\",Config!$AD$14,IF(B6=\"S14\",Config!$AD$15,IF(B6=\"S15\",Config!$AD$16,IF(B6=\"S16\",Config!$AD$17,IF(B6=\"S17\",Config!$AD$18,IF(B6=\"S18\",Config!$AD$19,IF(B6=\"C01\",Config!$AD$20,IF(B6=\"C02\",Config!$AD$21,IF(B6=\"C03\",Config!$AD$22,IF(B6=\"C04\",Config!$AD$23,IF(B6=\"C05\",Config!$AD$24,IF(B6=\"C06\",Config!$AD$25,IF(B6=\"R01\",Config!$AD$26,IF(B6=\"R02\",Config!$AD$27,IF(B6=\"R03\",Config!$AD$28,IF(B6=\"R04\",Config!$AD$29,IF(B6=\"R05\",Config!$AD$30,IF(B6=\"R06\",Config!$AD$31,IF(B6=\"R07\",Config!$AD$32,IF(B6=\"R08\",Config!$AD$33,\"\")))))))))))))))))))))))))))))))))","v":{"$error":"#VALUE!"}},{"$f":"IF(C6=\"Random\",Config!$AD$1,IF(C6=\"S01\",Config!$AD$2,IF(C6=\"S02\",Config!$AD$3,IF(C6=\"S03\",Config!$AD$4,IF(C6=\"S04\",Config!$AD$5,IF(C6=\"S05\",Config!$AD$6,IF(C6=\"S06\",Config!$AD$7,IF(C6=\"S07\",Config!$AD$8,IF(C6=\"S08\",Config!$AD$9,IF(C6=\"S09\",Config!$AD$10,IF(C6=\"S10\",Config!$AD$11,IF(C6=\"S11\",Config!$AD$12,IF(C6=\"S12\",Config!$AD$13,IF(C6=\"S13\",Config!$AD$14,IF(C6=\"S14\",Config!$AD$15,IF(C6=\"S15\",Config!$AD$16,IF(C6=\"S16\",Config!$AD$17,IF(C6=\"S17\",Config!$AD$18,IF(C6=\"S18\",Config!$AD$19,IF(C6=\"C01\",Config!$AD$20,IF(C6=\"C02\",Config!$AD$21,IF(C6=\"C03\",Config!$AD$22,IF(C6=\"C04\",Config!$AD$23,IF(C6=\"C05\",Config!$AD$24,IF(C6=\"C06\",Config!$AD$25,IF(C6=\"R01\",Config!$AD$26,IF(C6=\"R02\",Config!$AD$27,IF(C6=\"R03\",Config!$AD$28,IF(C6=\"R04\",Config!$AD$29,IF(C6=\"R05\",Config!$AD$30,IF(C6=\"R06\",Config!$AD$31,IF(C6=\"R07\",Config!$AD$32,IF(C6=\"R08\",Config!$AD$33,\"\")))))))))))))))))))))))))))))))))","v":{"$error":"#VALUE!"}},{"$f":"IF(D6=\"Random\",Config!$AD$1,IF(D6=\"S01\",Config!$AD$2,IF(D6=\"S02\",Config!$AD$3,IF(D6=\"S03\",Config!$AD$4,IF(D6=\"S04\",Config!$AD$5,IF(D6=\"S05\",Config!$AD$6,IF(D6=\"S06\",Config!$AD$7,IF(D6=\"S07\",Config!$AD$8,IF(D6=\"S08\",Config!$AD$9,IF(D6=\"S09\",Config!$AD$10,IF(D6=\"S10\",Config!$AD$11,IF(D6=\"S11\",Config!$AD$12,IF(D6=\"S12\",Config!$AD$13,IF(D6=\"S13\",Config!$AD$14,IF(D6=\"S14\",Config!$AD$15,IF(D6=\"S15\",Config!$AD$16,IF(D6=\"S16\",Config!$AD$17,IF(D6=\"S17\",Config!$AD$18,IF(D6=\"S18\",Config!$AD$19,IF(D6=\"C01\",Config!$AD$20,IF(D6=\"C02\",Config!$AD$21,IF(D6=\"C03\",Config!$AD$22,IF(D6=\"C04\",Config!$AD$23,IF(D6=\"C05\",Config!$AD$24,IF(D6=\"C06\",Config!$AD$25,IF(D6=\"R01\",Config!$AD$26,IF(D6=\"R02\",Config!$AD$27,IF(D6=\"R03\",Config!$AD$28,IF(D6=\"R04\",Config!$AD$29,IF(D6=\"R05\",Config!$AD$30,IF(D6=\"R06\",Config!$AD$31,IF(D6=\"R07\",Config!$AD$32,IF(D6=\"R08\",Config!$AD$33,\"\")))))))))))))))))))))))))))))))))","v":{"$error":"#VALUE!"}},{"$f":"IF(E6=\"Random\",Config!$AD$1,IF(E6=\"S01\",Config!$AD$2,IF(E6=\"S02\",Config!$AD$3,IF(E6=\"S03\",Config!$AD$4,IF(E6=\"S04\",Config!$AD$5,IF(E6=\"S05\",Config!$AD$6,IF(E6=\"S06\",Config!$AD$7,IF(E6=\"S07\",Config!$AD$8,IF(E6=\"S08\",Config!$AD$9,IF(E6=\"S09\",Config!$AD$10,IF(E6=\"S10\",Config!$AD$11,IF(E6=\"S11\",Config!$AD$12,IF(E6=\"S12\",Config!$AD$13,IF(E6=\"S13\",Config!$AD$14,IF(E6=\"S14\",Config!$AD$15,IF(E6=\"S15\",Config!$AD$16,IF(E6=\"S16\",Config!$AD$17,IF(E6=\"S17\",Config!$AD$18,IF(E6=\"S18\",Config!$AD$19,IF(E6=\"C01\",Config!$AD$20,IF(E6=\"C02\",Config!$AD$21,IF(E6=\"C03\",Config!$AD$22,IF(E6=\"C04\",Config!$AD$23,IF(E6=\"C05\",Config!$AD$24,IF(E6=\"C06\",Config!$AD$25,IF(E6=\"R01\",Config!$AD$26,IF(E6=\"R02\",Config!$AD$27,IF(E6=\"R03\",Config!$AD$28,IF(E6=\"R04\",Config!$AD$29,IF(E6=\"R05\",Config!$AD$30,IF(E6=\"R06\",Config!$AD$31,IF(E6=\"R07\",Config!$AD$32,IF(E6=\"R08\",Config!$AD$33,\"\")))))))))))))))))))))))))))))))))","v":{"$error":"#VALUE!"}},{"$f":"IF(F6=\"Random\",Config!$AD$1,IF(F6=\"S01\",Config!$AD$2,IF(F6=\"S02\",Config!$AD$3,IF(F6=\"S03\",Config!$AD$4,IF(F6=\"S04\",Config!$AD$5,IF(F6=\"S05\",Config!$AD$6,IF(F6=\"S06\",Config!$AD$7,IF(F6=\"S07\",Config!$AD$8,IF(F6=\"S08\",Config!$AD$9,IF(F6=\"S09\",Config!$AD$10,IF(F6=\"S10\",Config!$AD$11,IF(F6=\"S11\",Config!$AD$12,IF(F6=\"S12\",Config!$AD$13,IF(F6=\"S13\",Config!$AD$14,IF(F6=\"S14\",Config!$AD$15,IF(F6=\"S15\",Config!$AD$16,IF(F6=\"S16\",Config!$AD$17,IF(F6=\"S17\",Config!$AD$18,IF(F6=\"S18\",Config!$AD$19,IF(F6=\"C01\",Config!$AD$20,IF(F6=\"C02\",Config!$AD$21,IF(F6=\"C03\",Config!$AD$22,IF(F6=\"C04\",Config!$AD$23,IF(F6=\"C05\",Config!$AD$24,IF(F6=\"C06\",Config!$AD$25,IF(F6=\"R01\",Config!$AD$26,IF(F6=\"R02\",Config!$AD$27,IF(F6=\"R03\",Config!$AD$28,IF(F6=\"R04\",Config!$AD$29,IF(F6=\"R05\",Config!$AD$30,IF(F6=\"R06\",Config!$AD$31,IF(F6=\"R07\",Config!$AD$32,IF(F6=\"R08\",Config!$AD$33,\"\")))))))))))))))))))))))))))))))))","v":{"$error":"#VALUE!"}},{"$f":"IF(G6=\"Random\",Config!$AD$1,IF(G6=\"S01\",Config!$AD$2,IF(G6=\"S02\",Config!$AD$3,IF(G6=\"S03\",Config!$AD$4,IF(G6=\"S04\",Config!$AD$5,IF(G6=\"S05\",Config!$AD$6,IF(G6=\"S06\",Config!$AD$7,IF(G6=\"S07\",Config!$AD$8,IF(G6=\"S08\",Config!$AD$9,IF(G6=\"S09\",Config!$AD$10,IF(G6=\"S10\",Config!$AD$11,IF(G6=\"S11\",Config!$AD$12,IF(G6=\"S12\",Config!$AD$13,IF(G6=\"S13\",Config!$AD$14,IF(G6=\"S14\",Config!$AD$15,IF(G6=\"S15\",Config!$AD$16,IF(G6=\"S16\",Config!$AD$17,IF(G6=\"S17\",Config!$AD$18,IF(G6=\"S18\",Config!$AD$19,IF(G6=\"C01\",Config!$AD$20,IF(G6=\"C02\",Config!$AD$21,IF(G6=\"C03\",Config!$AD$22,IF(G6=\"C04\",Config!$AD$23,IF(G6=\"C05\",Config!$AD$24,IF(G6=\"C06\",Config!$AD$25,IF(G6=\"R01\",Config!$AD$26,IF(G6=\"R02\",Config!$AD$27,IF(G6=\"R03\",Config!$AD$28,IF(G6=\"R04\",Config!$AD$29,IF(G6=\"R05\",Config!$AD$30,IF(G6=\"R06\",Config!$AD$31,IF(G6=\"R07\",Config!$AD$32,IF(G6=\"R08\",Config!$AD$33,\"\")))))))))))))))))))))))))))))))))","v":{"$error":"#VALUE!"}},{"$f":"IF(H6=\"Random\",Config!$AD$1,IF(H6=\"S01\",Config!$AD$2,IF(H6=\"S02\",Config!$AD$3,IF(H6=\"S03\",Config!$AD$4,IF(H6=\"S04\",Config!$AD$5,IF(H6=\"S05\",Config!$AD$6,IF(H6=\"S06\",Config!$AD$7,IF(H6=\"S07\",Config!$AD$8,IF(H6=\"S08\",Config!$AD$9,IF(H6=\"S09\",Config!$AD$10,IF(H6=\"S10\",Config!$AD$11,IF(H6=\"S11\",Config!$AD$12,IF(H6=\"S12\",Config!$AD$13,IF(H6=\"S13\",Config!$AD$14,IF(H6=\"S14\",Config!$AD$15,IF(H6=\"S15\",Config!$AD$16,IF(H6=\"S16\",Config!$AD$17,IF(H6=\"S17\",Config!$AD$18,IF(H6=\"S18\",Config!$AD$19,IF(H6=\"C01\",Config!$AD$20,IF(H6=\"C02\",Config!$AD$21,IF(H6=\"C03\",Config!$AD$22,IF(H6=\"C04\",Config!$AD$23,IF(H6=\"C05\",Config!$AD$24,IF(H6=\"C06\",Config!$AD$25,IF(H6=\"R01\",Config!$AD$26,IF(H6=\"R02\",Config!$AD$27,IF(H6=\"R03\",Config!$AD$28,IF(H6=\"R04\",Config!$AD$29,IF(H6=\"R05\",Config!$AD$30,IF(H6=\"R06\",Config!$AD$31,IF(H6=\"R07\",Config!$AD$32,IF(H6=\"R08\",Config!$AD$33,\"\")))))))))))))))))))))))))))))))))","v":{"$error":"#VALUE!"}},{"$f":"IF(I6=\"Random\",Config!$AD$1,IF(I6=\"S01\",Config!$AD$2,IF(I6=\"S02\",Config!$AD$3,IF(I6=\"S03\",Config!$AD$4,IF(I6=\"S04\",Config!$AD$5,IF(I6=\"S05\",Config!$AD$6,IF(I6=\"S06\",Config!$AD$7,IF(I6=\"S07\",Config!$AD$8,IF(I6=\"S08\",Config!$AD$9,IF(I6=\"S09\",Config!$AD$10,IF(I6=\"S10\",Config!$AD$11,IF(I6=\"S11\",Config!$AD$12,IF(I6=\"S12\",Config!$AD$13,IF(I6=\"S13\",Config!$AD$14,IF(I6=\"S14\",Config!$AD$15,IF(I6=\"S15\",Config!$AD$16,IF(I6=\"S16\",Config!$AD$17,IF(I6=\"S17\",Config!$AD$18,IF(I6=\"S18\",Config!$AD$19,IF(I6=\"C01\",Config!$AD$20,IF(I6=\"C02\",Config!$AD$21,IF(I6=\"C03\",Config!$AD$22,IF(I6=\"C04\",Config!$AD$23,IF(I6=\"C05\",Config!$AD$24,IF(I6=\"C06\",Config!$AD$25,IF(I6=\"R01\",Config!$AD$26,IF(I6=\"R02\",Config!$AD$27,IF(I6=\"R03\",Config!$AD$28,IF(I6=\"R04\",Config!$AD$29,IF(I6=\"R05\",Config!$AD$30,IF(I6=\"R06\",Config!$AD$31,IF(I6=\"R07\",Config!$AD$32,IF(I6=\"R08\",Config!$AD$33,\"\")))))))))))))))))))))))))))))))))","v":{"$error":"#VALUE!"}},{"$f":"IF(J6=\"Random\",Config!$AD$1,IF(J6=\"S01\",Config!$AD$2,IF(J6=\"S02\",Config!$AD$3,IF(J6=\"S03\",Config!$AD$4,IF(J6=\"S04\",Config!$AD$5,IF(J6=\"S05\",Config!$AD$6,IF(J6=\"S06\",Config!$AD$7,IF(J6=\"S07\",Config!$AD$8,IF(J6=\"S08\",Config!$AD$9,IF(J6=\"S09\",Config!$AD$10,IF(J6=\"S10\",Config!$AD$11,IF(J6=\"S11\",Config!$AD$12,IF(J6=\"S12\",Config!$AD$13,IF(J6=\"S13\",Config!$AD$14,IF(J6=\"S14\",Config!$AD$15,IF(J6=\"S15\",Config!$AD$16,IF(J6=\"S16\",Config!$AD$17,IF(J6=\"S17\",Config!$AD$18,IF(J6=\"S18\",Config!$AD$19,IF(J6=\"C01\",Config!$AD$20,IF(J6=\"C02\",Config!$AD$21,IF(J6=\"C03\",Config!$AD$22,IF(J6=\"C04\",Config!$AD$23,IF(J6=\"C05\",Config!$AD$24,IF(J6=\"C06\",Config!$AD$25,IF(J6=\"R01\",Config!$AD$26,IF(J6=\"R02\",Config!$AD$27,IF(J6=\"R03\",Config!$AD$28,IF(J6=\"R04\",Config!$AD$29,IF(J6=\"R05\",Config!$AD$30,IF(J6=\"R06\",Config!$AD$31,IF(J6=\"R07\",Config!$AD$32,IF(J6=\"R08\",Config!$AD$33,\"\")))))))))))))))))))))))))))))))))","v":""},{"$f":"IF(K6=\"Random\",Config!$AD$1,IF(K6=\"S01\",Config!$AD$2,IF(K6=\"S02\",Config!$AD$3,IF(K6=\"S03\",Config!$AD$4,IF(K6=\"S04\",Config!$AD$5,IF(K6=\"S05\",Config!$AD$6,IF(K6=\"S06\",Config!$AD$7,IF(K6=\"S07\",Config!$AD$8,IF(K6=\"S08\",Config!$AD$9,IF(K6=\"S09\",Config!$AD$10,IF(K6=\"S10\",Config!$AD$11,IF(K6=\"S11\",Config!$AD$12,IF(K6=\"S12\",Config!$AD$13,IF(K6=\"S13\",Config!$AD$14,IF(K6=\"S14\",Config!$AD$15,IF(K6=\"S15\",Config!$AD$16,IF(K6=\"S16\",Config!$AD$17,IF(K6=\"S17\",Config!$AD$18,IF(K6=\"S18\",Config!$AD$19,IF(K6=\"C01\",Config!$AD$20,IF(K6=\"C02\",Config!$AD$21,IF(K6=\"C03\",Config!$AD$22,IF(K6=\"C04\",Config!$AD$23,IF(K6=\"C05\",Config!$AD$24,IF(K6=\"C06\",Config!$AD$25,IF(K6=\"R01\",Config!$AD$26,IF(K6=\"R02\",Config!$AD$27,IF(K6=\"R03\",Config!$AD$28,IF(K6=\"R04\",Config!$AD$29,IF(K6=\"R05\",Config!$AD$30,IF(K6=\"R06\",Config!$AD$31,IF(K6=\"R07\",Config!$AD$32,IF(K6=\"R08\",Config!$AD$33,\"\")))))))))))))))))))))))))))))))))","v":""},{"$f":"IF(L6=\"Random\",Config!$AD$1,IF(L6=\"S01\",Config!$AD$2,IF(L6=\"S02\",Config!$AD$3,IF(L6=\"S03\",Config!$AD$4,IF(L6=\"S04\",Config!$AD$5,IF(L6=\"S05\",Config!$AD$6,IF(L6=\"S06\",Config!$AD$7,IF(L6=\"S07\",Config!$AD$8,IF(L6=\"S08\",Config!$AD$9,IF(L6=\"S09\",Config!$AD$10,IF(L6=\"S10\",Config!$AD$11,IF(L6=\"S11\",Config!$AD$12,IF(L6=\"S12\",Config!$AD$13,IF(L6=\"S13\",Config!$AD$14,IF(L6=\"S14\",Config!$AD$15,IF(L6=\"S15\",Config!$AD$16,IF(L6=\"S16\",Config!$AD$17,IF(L6=\"S17\",Config!$AD$18,IF(L6=\"S18\",Config!$AD$19,IF(L6=\"C01\",Config!$AD$20,IF(L6=\"C02\",Config!$AD$21,IF(L6=\"C03\",Config!$AD$22,IF(L6=\"C04\",Config!$AD$23,IF(L6=\"C05\",Config!$AD$24,IF(L6=\"C06\",Config!$AD$25,IF(L6=\"R01\",Config!$AD$26,IF(L6=\"R02\",Config!$AD$27,IF(L6=\"R03\",Config!$AD$28,IF(L6=\"R04\",Config!$AD$29,IF(L6=\"R05\",Config!$AD$30,IF(L6=\"R06\",Config!$AD$31,IF(L6=\"R07\",Config!$AD$32,IF(L6=\"R08\",Config!$AD$33,\"\")))))))))))))))))))))))))))))))))","v":""},{"$f":"IF(M6=\"Random\",Config!$AD$1,IF(M6=\"S01\",Config!$AD$2,IF(M6=\"S02\",Config!$AD$3,IF(M6=\"S03\",Config!$AD$4,IF(M6=\"S04\",Config!$AD$5,IF(M6=\"S05\",Config!$AD$6,IF(M6=\"S06\",Config!$AD$7,IF(M6=\"S07\",Config!$AD$8,IF(M6=\"S08\",Config!$AD$9,IF(M6=\"S09\",Config!$AD$10,IF(M6=\"S10\",Config!$AD$11,IF(M6=\"S11\",Config!$AD$12,IF(M6=\"S12\",Config!$AD$13,IF(M6=\"S13\",Config!$AD$14,IF(M6=\"S14\",Config!$AD$15,IF(M6=\"S15\",Config!$AD$16,IF(M6=\"S16\",Config!$AD$17,IF(M6=\"S17\",Config!$AD$18,IF(M6=\"S18\",Config!$AD$19,IF(M6=\"C01\",Config!$AD$20,IF(M6=\"C02\",Config!$AD$21,IF(M6=\"C03\",Config!$AD$22,IF(M6=\"C04\",Config!$AD$23,IF(M6=\"C05\",Config!$AD$24,IF(M6=\"C06\",Config!$AD$25,IF(M6=\"R01\",Config!$AD$26,IF(M6=\"R02\",Config!$AD$27,IF(M6=\"R03\",Config!$AD$28,IF(M6=\"R04\",Config!$AD$29,IF(M6=\"R05\",Config!$AD$30,IF(M6=\"R06\",Config!$AD$31,IF(M6=\"R07\",Config!$AD$32,IF(M6=\"R08\",Config!$AD$33,\"\")))))))))))))))))))))))))))))))))","v":""}]
[{"$f":"COUNTA(B6:M6)","v":8},"S01","S02","R01","R02","R08","R08","R08","R07"]
[]
[null,"Cette page sert à générer une image des différentes tuiles de météo à insérer dans l'onglet \"Fiche de Course\" avec le bouton \"Valider\""]
[]
[]
[]
[null,"S01","S02","S03","S04","S05","S06","S07","S08","S09"]
[]
[]
[null,"S10","S11","S12","S13","S14","S15","S16","S17","S18"]
[]
[]
[null,"Random",null,"C01","C02","C03","C04","C05","C06"]
[]
[]
[null,"R01","R02","R03","R04","R05","R06","R07","R08"]
[]
[]
[]
[null,"↑ Cliquer sur les tuiles ci-dessus pour remplir l'image correspondante a votre salon de course ↑"]

{"sheet":"Config","index":2,"n_rows":1503,"n_cols":31,"rows_kept":1503,"cut":false,"hidden":true,"merged":[[0,22,1,22],[2,22,3,22]]}
["Français","English","Selected","Français","English","Selected","Liste des Circuits","Kg","PP/CV","Lap","Init Fuel","Nitro","Use","Temps","Météo","Time","Fuel","End","Start","Pneus","Qualif","Trad.","Pneus Dispo",true,true,true,true,true,"Tunning",{"$error":"#VALUE!"},"Random"]
["FICHE DE COURSE","RACE CARD",null,"Course libre","Free Run",{"$f":"IF(Config!$V$2=\"FR\",Config!D2,Config!E2)","v":"Course libre"},"24 Heures du Nürburgring","No","No",1,"S/Race","Def","S/Race","1 mn","Random","x0","1 L/s","30 s"," -- ","No",{"$f":"IF(ISNUMBER(SEARCH(\"qualif\",'Fiche de Course'!G6)),\"YES\",\"NO\")","v":"YES"},"FR",null,{"$f":"IF(Config!X1=TRUE,1,0)","v":1},{"$f":"IF(Config!Y1=TRUE,1,0)","v":1},{"$f":"IF(Config!Z1=TRUE,1,0)","v":1},{"$f":"IF(Config!AA1=TRUE,1,0)","v":1},{"$f":"IF(Config!AB1=TRUE,1,0)","v":1},{"$f":"SUM(AC3:AC9)","v":13},{"$error":"#VALUE!"},"S01"]
["PARAMÈTRES DU SALON","ROOM SETTINGS",null,"Entraînement / Course","Practice / Race",{"$f":"IF(Config!$V$2=\"FR\",Config!D3,Config!E3)","v":"Entraînement / Course"},"Alsace - Site d'essais",500,100,2,"Défaut","x0,1","x0","2 mn","S01","x1","2 L/s","40 s","1 mn","Confort",null,null,"Pneus Requis",{"$f":"IF(Config!X4=TRUE,1,0)","v":0},{"$f":"IF(Config!Y4=TRUE,1,0)","v":1},{"$f":"IF(Config!Z4=TRUE,1,0)","v":1},null,null,{"$f":"IF('Fiche de Course'!C34=TRUE,1,0)+IF('Fiche de Course'!F34=TRUE,1,0)","v":2},{"$error":"#VALUE!"},"S02"]
["Mode Salon","Room Mode",null,"Entraînement / Qualifications / Course","Practice / Qualifications / Race",{"$f":"IF(Config!$V$2=\"FR\",Config!D4,Config!E4)","v":"Entraînement / Qualifications / Course"},"Alsace - Site d'essais II",501,101,3,0.01,"x0,2","x1","3 mn","S02","x2","3 L/s","50 s","2 mn","Sport",null,null,null,false,true,true,null,null,{"$f":"IF('Fiche de Course'!C35=TRUE,1,0)+IF('Fiche de Course'!F35=TRUE,1,0)","v":2},{"$error":"#VALUE!"},"S03"]
["Accès au salon","Room Privacy",null,"Entraînement / Course d'endurance","Practice / Endurance Race",{"$f":"IF(Config!$V$2=\"FR\",Config!D5,Config!E5)","v":"Entraînement / Course d'endurance"},"Alsace - Village ",502,102,4,0.02,"x0,3","x2","5 mn","S03","x3","4 L/s","60 s","3 mn","Course",null,null,null,null,null,null,null,null,{"$f":"IF('Fiche de Course'!C36=TRUE,1,0)+IF('Fiche de Course'!F36=TRUE,1,0)","v":2},{"$error":"#VALUE!"},"S04"]
["Type de Course","Race Type",null,"Entraînement / Qualification / Course d'endurance","Practice / Qualification / Endurance Race",{"$f":"IF(Config!$V$2=\"FR\",Config!D6,Config!E6)","v":"Entraînement / Qualification / Course d'endurance"},"Alsace - Village II",503,103,5,0.03,"x0,4","x3","10 mn","S04","x4","5 L/s","70 s","4 mn",null,null,null,null,null,null,null,null,null,{"$f":"IF('Fiche de Course'!C37=TRUE,1,0)+IF('Fiche de Course'!F37=TRUE,1,0)","v":2},{"$error":"#VALUE!"},"S05"]
["Nombre max. de participants","Max. Number of Participants",null,null,null,null,"Autodrome Lago Maggiore - Centre",504,104,6,0.04,"x0,5","x4","15 mn","S05","x5","6 L/s","80 s","5 mn",null,null,null,null,null,null,null,null,null,{"$f":"IF('Fiche de Course'!C38=TRUE,1,0)+IF('Fiche de Course'!F38=TRUE,1,0)","v":2},{"$error":"#VALUE!"},"S06"]
["PARAMÈTRES DU CIRCUIT","TRACK SETTINGS",null,"Public","Public",{"$f":"IF(Config!$V$2=\"FR\",Config!D8,Config!E8)","v":"Public"},"Autodrome Lago Maggiore - Centre II",505,105,7,0.05,"x0,6","x5","20 mn","S06","x6","7 L/s","90 s","6 mn",null,null,null,null,null,null,null,null,null,{"$f":"IF('Fiche de Course'!C39=TRUE,1,0)+IF('Fiche de Course'!F39=TRUE,1,0)","v":2},{"$error":"#VALUE!"},"S07"]
["Démarrage automatique","Auto-Start",null,"Amis uniquement","Friends Only",{"$f":"IF(Config!$V$2=\"FR\",Config!D9,Config!E9)","v":"Amis uniquement"},"Autodrome Lago Maggiore - Est",506,106,8,0.06,"x0,7","x6","25 mn","S07","x7","8 L/s","100 s","7 mn",null,null,null,null,null,null,null,null,null,{"$f":"IF('Fiche de Course'!C40=TRUE,1,0)+IF('Fiche de Course'!F40=TRUE,1,0)","v":1},{"$error":"#VALUE!"},"S08"]
["Circuit","Track",null,null,null,null,"Autodrome Lago Maggiore - Est II",507,107,9,7.0000000000000007E-2,"x0,8","x7","30 mn","S08","x8","9 L/s","110 s","8 mn",null,null,null,null,null,null,null,null,null,null,{"$error":"#VALUE!"},"S09"]
[{"$f":"IF(ISNUMBER(SEARCH(\"endurance\",'Fiche de Course'!G6)),\"Limite de temps\",\"Nombre de tours\")","v":"Limite de temps"},{"$f":"IF(ISNUMBER(SEARCH(\"endurance\",'Fiche de Course'!G6)),\"Time Limit\",\"No. Of Laps\")","v":"Time Limit"},{"$f":"IF(Config!$V$2=\"FR\",Config!A11,Config!A11)","v":"Limite de temps"},"Course amicale","Friendly Race",{"$f":"IF(Config!$V$2=\"FR\",Config!D11,Config!E11)","v":"Course amicale"},"Autodrome Lago Maggiore - Extrémité est",508,108,10,0.08,"x0,9","x8","40 mn","S09","x9","10 L/s","120 s","9 mn",null,null,null,null,null,null,null,null,null,null,{"$error":"#VALUE!"},"S10"]
["PARAMÈTRES MÉTÉO / HORAIRES","TIME AND WEATHER SETTINGS",null,"Course Libre","Free Race",{"$f":"IF(Config!$V$2=\"FR\",Config!D12,Config!E12)","v":"Course Libre"},"Autodrome Lago Maggiore - Extrémité est II",509,109,11,0.09,"x1,1","x9","50 mn","S10","x10","11 L/s","130 s","10 mn",null,null,null,null,null,null,null,null,null,null,{"$error":"#VALUE!"},"S11"]
["Méthode de sélection météo","Weather Selection Method",null,"Drift","Drift",{"$f":"IF(Config!$V$2=\"FR\",Config!D13,Config!E13)","v":"Drift"},"Autodrome Lago Maggiore - Extrémité ouest",510,110,12,0.1,"x1,2","x10","60 mn","S11","x11","12 L/s","140 s",null,null,null,null,null,null,null,null,null,null,null,{"$error":"#VALUE!"},"S12"]
[{"$f":"IF(ISNUMBER(SEARCH(\"pr\",'Fiche de Course'!G17)),\"Météo prédéfinie\",\"Météo personnalisés\")","v":"Météo personnalisés"},{"$f":"IF(ISNUMBER(SEARCH(\"pr\",'Fiche de Course'!G17)),\"Preset Weather\",\"Custom Weather\")","v":"Custom Weather"},{"$f":"IF(Config!$V$2=\"FR\",Config!A14,Config!A14)","v":"Météo personnalisés"},"Course réelle","Real Race",{"$f":"IF(Config!$V$2=\"FR\",Config!D14,Config!E14)","v":"Course réelle"},"Autodrome Lago Maggiore - Extrémité ouest II",511,111,13,0.11,"x1,3","x11","90 mn","S12","x12","13 L/s","150 s",null,null,null,null,null,null,null,null,null,null,null,{"$error":"#VALUE!"},"S13"]
["Mode conditions égales","Equal Conditions Mode",{"$f":"IF(Config!$V$2=\"FR\",Config!A15,Config!A15)","v":"Mode conditions égales"},null,null,null,"Autodrome Lago Maggiore - Ouest",512,112,14,0.12,"x1,4","x12","2h","S13","x13","14 L/s","160 s",null,null,null,null,null,null,null,null,null,null,null,{"$error":"#VALUE!"},"S14"]
["Taux de la période de temps variable","Variable Time Speed Rate",null,"Météo prédéfinie","Preset Weather",{"$f":"IF(Config!$V$2=\"FR\",Config!D16,Config!E16)","v":"Météo prédéfinie"},"Autodrome Lago Maggiore - Ouest II",513,113,15,0.13,"x1,5","x13","3h","S14","x14","15 L/s","170 s",null,null,null,null,null,null,null,null,null,null,null,{"$error":"#VALUE!"},"S15"]
["Heure du jour","Time of the Day",null,"Météo personnalisés","Custom Weather",{"$f":"IF(Config!$V$2=\"FR\",Config!D17,Config!E17)","v":"Météo personnalisés"},"Autodrome Lago Maggiore - Totalité du parcours",514,114,16,0.14000000000000001,"x1,6","x14","4h","S15","x15","16 L/s","180 s",null,null,null,null,null,null,null,null,null,null,null,{"$error":"#VALUE!"},"S16"]
["PARAMÈTRES DE COURSE","RACE SETTING",null,null,null,null,"Autodrome Lago Maggiore - Totalité du parcours II",515,115,17,0.15,"x1,7","x15","5h","S16","x16","17 L/s",null,null,null,null,null,null,null,null,null,null,null,null,{"$error":"#VALUE!"},"S17"]
["Type de départ","Start Type",null,"Oui","Yes",{"$f":"IF(Config!$V$2=\"FR\",Config!D19,Config!E19)","v":"Oui"},"Autòdromo de Interlagos ",516,116,18,0.16,"x1,8","x16","6h","S17","x17","18 L/s",null,null,null,null,null,null,null,null,null,null,null,null,{"$error":"#VALUE!"},"S18"]
["Ordre de départ","Grid Order",null,"Non","No",{"$f":"IF(Config!$V$2=\"FR\",Config!D20,Config!E20)","v":"Non"},"Autodromo Nazionale Monza",517,117,19,0.17,"x1,9","x17","7h","S18","x18","19 L/s",null,null,null,null,null,null,null,null,null,null,null,null,{"$error":"#VALUE!"},"C01"]
["BoP/Préparation interdits","BoP/Tuning Forbidden",null,null,null,null,"Autodromo Nazionale Monza - Sans Chicance",518,118,20,0.18,"x1,0","x18","8h","C01","x19","20 L/s",null,null,null,null,null,null,null,null,null,null,null,null,{"$error":"#VALUE!"},"C02"]
["Options de paramètres","Settings Options",null,"Aube","Aube",{"$f":"IF(Config!$V$2=\"FR\",Config!D22,Config!E22)","v":"Aube"},"Autopolis International Racing Course",519,119,21,0.19,"x2,1","x19","9h","C02","x20",null,null,null,null,null,null,null,null,null,null,null,null,null,{"$error":"#VALUE!"},"C03"]
["Réglage de hauteur de carrosserie","Body Height Adjustment",null,"Aurore","Aurore",{"$f":"IF(Config!$V$2=\"FR\",Config!D23,Config!E23)","v":"Aurore"},"Autopolis International Racing Course - Court",520,120,22,0.2,"x2,2","x20","10h","C03","x21",null,null,null,null,null,null,null,null,null,null,null,null,null,{"$error":"#VALUE!"},"C04"]
["Barre anti-roulis","Anti-Roll Bar",null,"Lever du soleil","Sunrise",{"$f":"IF(Config!$V$2=\"FR\",Config!D24,Config!E24)","v":"Lever du soleil"},"BB Raceway ",521,121,23,0.21,"x2,3","x21","11h","C04","x22",null,null,null,null,null,null,null,null,null,null,null,null,null,{"$error":"#VALUE!"},"C05"]
["Ratio d'amortissement","Damping Ratio",null,"Début de matinée","Early morning",{"$f":"IF(Config!$V$2=\"FR\",Config!D25,Config!E25)","v":"Début de matinée"},"BB Raceway II",522,122,24,0.22,"x2,4","x22","12h","C05","x23",null,null,null,null,null,null,null,null,null,null,null,null,null,{"$error":"#VALUE!"},"C06"]
["Fréquence naturelle","Natural Frequency",null,"Fin de matinée","Late morning",{"$f":"IF(Config!$V$2=\"FR\",Config!D26,Config!E26)","v":"Fin de matinée"},"Blue Moon Bay Speedway ",523,123,25,0.23,"x2,5","x23","13h","C06","x24",null,null,null,null,null,null,null,null,null,null,null,null,null,{"$error":"#VALUE!"},"R01"]
["Angle de carrossage négatif","Negative Camber Angle",null,"Après-midi","Afternoon",{"$f":"IF(Config!$V$2=\"FR\",Config!D27,Config!E27)","v":"Après-midi"},"Blue Moon Bay Speedway - Central A",524,124,26,0.24,"x2,6","x24","14h","R01","x25",null,null,null,null,null,null,null,null,null,null,null,null,null,{"$error":"#VALUE!"},"R02"]
["Angle de pincement","Toe Angle",null,"Soir","Evening",{"$f":"IF(Config!$V$2=\"FR\",Config!D28,Config!E28)","v":"Soir"},"Blue Moon Bay Speedway - Central A II",525,125,27,0.25,"x2,7","x25","15h","R02","x26",null,null,null,null,null,null,null,null,null,null,null,null,null,{"$error":"#VALUE!"},"R03"]
["Appui","Downforce",null,"Coucher de soleil","Sunset",{"$f":"IF(Config!$V$2=\"FR\",Config!D29,Config!E29)","v":"Coucher de soleil"},"Blue Moon Bay Speedway - Central B",526,126,28,0.26,"x2,8","x26","16h","R03","x27",null,null,null,null,null,null,null,null,null,null,null,null,null,{"$error":"#VALUE!"},"R04"]
["Différentiel","Differential",null,"Crépuscule","Dusk",{"$f":"IF(Config!$V$2=\"FR\",Config!D30,Config!E30)","v":"Crépuscule"},"Blue Moon Bay Speedway - Central B II",527,127,29,0.27,"x2,9","x27","17h","R04","x28",null,null,null,null,null,null,null,null,null,null,null,null,null,{"$error":"#VALUE!"},"R05"]
["Différentiel central à vecteur de couple","Torque-Vectoring Center Differential",null,"Nuit","Night",{"$f":"IF(Config!$V$2=\"FR\",Config!D31,Config!E31)","v":"Nuit"},"Blue Moon Bay Speedway II",528,128,30,0.28000000000000003,"x2,0","x28","18h","R05","x29",null,null,null,null,null,null,null,null,null,null,null,null,null,{"$error":"#VALUE!"},"R06"]
["Transmission (pas de transmission secondaire)","Transmission (no secondary transmission)",null,"Minuit","Midnight",{"$f":"IF(Config!$V$2=\"FR\",Config!D32,Config!E32)","v":"Minuit"},"Brands Hatch GP",529,129,31,0.28999999999999998,"x3,1","x29","19h","R06","x30",null,null,null,null,null,null,null,null,null,null,null,null,null,{"$error":"#VALUE!"},"R07"]
["Transmission (transmission secondaire)","Transmission (secondary transmission)",null,null,null,null,"Brands Hatch Indy ",530,130,32,0.3,"x3,2","x30","20h","R07",null,null,null,null,null,null,null,null,null,null,null,null,null,null,{"$error":"#VALUE!"},"R08"]
["Equilibre des freins","Brake Balance",null,"Emplacement au départ","Grid Start",{"$f":"IF(Config!$V$2=\"FR\",Config!D34,Config!E34)","v":"Emplacement au départ"},"Circuit de Barcelona-Catalunya GP",531,131,33,0.31,"x3,3","x31","21h","R08"]
["Force d’aspiration","Slipstream Strenght",null,"Emplacement au départ - Vérif faux départ","Grid Start with False Start Check",{"$f":"IF(Config!$V$2=\"FR\",Config!D35,Config!E35)","v":"Emplacement au départ - Vérif faux départ"},"Circuit de Barcelona-Catalunya GP sans chicane",532,132,34,0.32,"x3,4","x32","22h"]
["Dégâts visibles","Visible Damage",null,"Départ Lancé","Rolling Start",{"$f":"IF(Config!$V$2=\"FR\",Config!D36,Config!E36)","v":"Départ Lancé"},"Circuit de Barcelona-Catalunya National",533,133,35,0.33,"x3,5","x33","23h"]
["Dommages mécaniques","Mechanical Damage",null,null,null,null,"Circuit de Barcelona-Catalunya Rallycross",534,134,36,0.34,"x3,6","x34","24h"]
["Usure pneumatique","Tyre Wear Rate",null,"La plus rapide en premier","Fastest First",{"$f":"IF(Config!$V$2=\"FR\",Config!D38,Config!E38)","v":"La plus rapide en premier"},"Circuit de Sainte Croix A ",535,135,37,0.35,"x3,7","x35"]
["Consommation de carburant","Fuel Consumption Rate",null,"Le plus lent en premier","Slowest First",{"$f":"IF(Config!$V$2=\"FR\",Config!D39,Config!E39)","v":"Le plus lent en premier"},"Circuit de Sainte Croix A II ",536,136,38,0.36,"x3,8","x36"]
["Vitesse de ravitaillement","Refuelling Speed",null,"Défini par l'hôte","Defined by host",{"$f":"IF(Config!$V$2=\"FR\",Config!D40,Config!E40)","v":"Défini par l'hôte"},"Circuit de Sainte Croix B ",537,137,39,0.37,"x3,9","x37"]
["Carburant initial","Initial Fuel",null,null,null,null,"Circuit de Sainte Croix B II ",538,138,40,0.38,"x3,0","x38"]
["Réduction de l’adhérance hors piste","Grip Reduction Off Track",null,"Tous","All",{"$f":"IF(Config!$V$2=\"FR\",Config!D42,Config!E42)","v":"Tous"},"Circuit de Sainte Croix C ",539,139,41,0.39,"x4,1","x39"]
["Délai avant fin de course","Race Finish Delay",null,"Certaines","Some",{"$f":"IF(Config!$V$2=\"FR\",Config!D43,Config!E43)","v":"Certaines"},"Circuit de Sainte Croix C II ",540,140,42,0.4,"x4,2","x40"]
["Nitro/Multiplicateur de temps","Nitro/Overtaking System Usage Time Multiplier",null,"Sans","None",{"$f":"IF(Config!$V$2=\"FR\",Config!D44,Config!E44)","v":"Sans"},"Circuit de Spa-Francorchamps",541,141,43,0.41,"x4,3","x41"]
["PARAMÈTRES DE QUALIFICATIONS","QUALIFICATIONS SETTINGS",null,null,null,null,"Circuit des 24 Heures du Mans",542,142,44,0.42,"x4,4","x42"]
["Limite de temps","Time Limite",null,"Fort","Strong",{"$f":"IF(Config!$V$2=\"FR\",Config!D46,Config!E46)","v":"Fort"},"Circuit des 24 Heures du Mans - Sans Chicances",543,143,45,0.43,"x4,5","x43"]
["Heure de reprise des qualifications","Qualification Finish Delay",null,"Faible","Weak",{"$f":"IF(Config!$V$2=\"FR\",Config!D47,Config!E47)","v":"Faible"},"Colorado Springs - Lac",544,144,46,0.44,"x4,6","x44"]
["Usure pneumatique (qualifications)","Tyre Wear Rate (Qualifications)",null,"Aucun","None",{"$f":"IF(Config!$V$2=\"FR\",Config!D48,Config!E48)","v":"Aucun"},"Colorado Springs - Lac II",545,145,47,0.45,"x4,7","x45"]
["Consommation de carburant (qualifications)","Fuel Consumption Rate (Qualifications)",null,null,null,null,"Daytona - Circuit Routier",546,146,48,0.46,"x4,8","x46"]
["Carburant initial (qualifications)","Initial Fuel (Qualifications)",null,"Forte","Strong",{"$f":"IF(Config!$V$2=\"FR\",Config!D50,Config!E50)","v":"Forte"},"Daytona - Tri-ovale",547,147,49,0.47,"x4,9","x47"]
["PARAMÈTRES DES RÈGLES","REGULATION SETTINGS",null,"Faible","Weak",{"$f":"IF(Config!$V$2=\"FR\",Config!D51,Config!E51)","v":"Faible"},"Deep Forest Raceway",548,148,50,0.48,"x4,0","x48"]
["Filtrer par catégorie","Filter by Category",null,"Réaliste","Real",{"$f":"IF(Config!$V$2=\"FR\",Config!D52,Config!E52)","v":"Réaliste"},"Deep Forest Raceway II",549,149,51,0.49,"x5,1","x49"]
["Limite de PP","PP Limit",null,null,null,null,"Dragon Trail  - Bord de mer",550,150,52,0.5,"x5,2","x50"]
["Puissance max.","Max. Power Output",null,"Forts","Heavy",{"$f":"IF(Config!$V$2=\"FR\",Config!D54,Config!E54)","v":"Forts"},"Dragon Trail  - Bord de mer II",551,151,53,0.51,"x5,3"]
["Poids minimum","Minimum Weight",null,"Légers","Light",{"$f":"IF(Config!$V$2=\"FR\",Config!D55,Config!E55)","v":"Légers"},"Dragon Trail  - Jardins",552,152,54,0.52,"x5,4"]
["Pneus utilisables","Useable Tires",null,"Aucun","None",{"$f":"IF(Config!$V$2=\"FR\",Config!D56,Config!E56)","v":"Aucun"},"Dragon Trail  - Jardins II",553,153,55,0.53,"x5,5"]
["Pneus utilisables et types","Useable Tire & Types",null,null,null,null,"Fishermans Ranch",554,154,56,0.54,"x5,6"]
["Type de pneus obligatoire","Required Tire Type Change",null,"Extrême et plus bas","Extreme and lower",{"$f":"IF(Config!$V$2=\"FR\",Config!D58,Config!E58)","v":"Extrême et plus bas"},"Fishermans Ranch II",555,155,57,0.55000000000000004,"x5,7"]
["Utilisation de karts","Kart Usage",null,"Aucune limite","No Limit",{"$f":"IF(Config!$V$2=\"FR\",Config!D59,Config!E59)","v":"Aucune limite"},"Fuji International Speedway",556,156,58,0.56000000000000005,"x5,8"]
["Remplacement moteur","Engine Swap",null,"Gr.1","Gr.1",{"$f":"IF(Config!$V$2=\"FR\",Config!D60,Config!E60)","v":"Gr.1"},"Fuji International Speedway - Court",557,157,59,0.56999999999999995,"x5,9"]
["Pièces de préparation","Preparation Parts",null,"Gr.2","Gr.2",{"$f":"IF(Config!$V$2=\"FR\",Config!D61,Config!E61)","v":"Gr.2"},"Goodwood Motor Circuit",558,158,60,0.57999999999999996,"x6,0"]
["PARAMÈTRES DE PÉNALITÉS","PENALTY SETTINGS",null,"Gr.3","Gr.3",{"$f":"IF(Config!$V$2=\"FR\",Config!D62,Config!E62)","v":"Gr.3"},"Grand Valley - Route 1",559,159,61,0.59,"x6,1"]
["Pénalité de raccourci","Shortcut Penalty",null,"Gr.4","Gr.4",{"$f":"IF(Config!$V$2=\"FR\",Config!D63,Config!E63)","v":"Gr.4"},"Grand Valley - Route 1 II",560,160,62,0.6,"x6,2"]
["Pénalité de collision (mur)","Wall Collision Penalty",null,"Gr.B","Gr.B",{"$f":"IF(Config!$V$2=\"FR\",Config!D64,Config!E64)","v":"Gr.B"},"Grand Valley - Sud",561,161,63,0.61,"x6,3"]
["Trajectoire ajustée après collision","Correct Vehicle Course After Wall Collision",null,null,null,null,"Grand Valley - Sud II",562,162,64,0.62,"x6,4"]
["Pénalité de collision (voiture)","Car Collision Penalty",null,"Ne peut être installé","Cannot be Installed",{"$f":"IF(Config!$V$2=\"FR\",Config!D66,Config!E66)","v":"Ne peut être installé"},"High Speed Ring",563,163,65,0.63,"x6,5"]
["Pénalité de coupure de la ligne des stands","Pit Lane Line Cutting Penalty",null,"Requis","Required",{"$f":"IF(Config!$V$2=\"FR\",Config!D67,Config!E67)","v":"Requis"},"High Speed Ring II",564,164,66,0.64,"x6,6"]
["Transparence pendant la course","Ghosting During Race",null,"Aucune limite","Unrestricted",{"$f":"IF(Config!$V$2=\"FR\",Config!D68,Config!E68)","v":"Aucune limite"},"Kyoto Driving Park - Miyabi ",565,165,67,0.65,"x6,7"]
["Règlement des drapeaux","Flag Rules",null,"Interdit","Forbidden",{"$f":"IF(Config!$V$2=\"FR\",Config!D69,Config!E69)","v":"Interdit"},"Kyoto Driving Park - Yamagiwa ",566,166,68,0.66,"x6,8"]
["RESTRICTIONS D'OPTIONS DE CONDUITE","LIMIT DRIVING OPTIONS",null,null,null,null,"Kyoto Driving Park - Yamagiwa + Miyabi ",567,167,69,0.67,"x6,9"]
["Aide au contre-braquage","Countersteering Assistance",null,"Désactivée","None",{"$f":"IF(Config!$V$2=\"FR\",Config!D71,Config!E71)","v":"Désactivée"},"Kyoto Driving Park - Yamagiwa + Miyabi II ",568,168,70,0.68,"x7,0"]
["GSA","Active Stability Management (ASM)",null,"Faible","Weak",{"$f":"IF(Config!$V$2=\"FR\",Config!D72,Config!E72)","v":"Faible"},"Kyoto Driving Park - Yamagiwa II",569,169,71,0.69,"x7,1"]
["Assistant de trajectoire","Driving Line Assist",null,"Forte","Strong",{"$f":"IF(Config!$V$2=\"FR\",Config!D73,Config!E73)","v":"Forte"},"Lake Louise - Circuit Court",570,170,72,0.7,"x7,2"]
["Contrôle de traction","Traction Control",null,null,null,null,"Lake Louise - Circuit Court Inversé",571,171,73,0.71,"x7,3"]
["Conduite automatique","Auto-Drive",null,"Désactivée","None",{"$f":"IF(Config!$V$2=\"FR\",Config!D75,Config!E75)","v":"Désactivée"},"Lake Louise - Circuit Long",572,172,74,0.72,"x7,4"]
["INFO SALON DE COURSE","LOBBY INFO",null,"Pénalité de temps (mineure)","Weak",{"$f":"IF(Config!$V$2=\"FR\",Config!D76,Config!E76)","v":"Pénalité de temps (mineure)"},"Lake Louise - Circuit Long Inversé",573,173,75,0.73,"x7,5"]
["Hote","Host",null,"Pénalité de temps (sévère)","Strong",{"$f":"IF(Config!$V$2=\"FR\",Config!D77,Config!E77)","v":"Pénalité de temps (sévère)"},"Lake Louise - Tri-Ovale",574,174,76,0.74,"x7,6"]
["Diffuseur","Channel",null,null,null,null,"Lake Louise - Tri-Ovale Inversé",575,175,77,0.75,"x7,7"]
["Organisateur","Organizer",null,"Avec","On",{"$f":"IF(Config!$V$2=\"FR\",Config!D79,Config!E79)","v":"Avec"},"Michelin Raceway Road Atlanta",576,176,78,0.76,"x7,8"]
["Commisaire","Marshall",null,"Sans","Off",{"$f":"IF(Config!$V$2=\"FR\",Config!D80,Config!E80)","v":"Sans"},"Mount Panorama Motor Racing Circuit ",577,177,79,0.77,"x7,9"]
[null,null,null,null,null,null,"Northern Isle Speedway ",578,178,80,0.78,"x8,0"]
[null,null,null,"Désactivé","Off",{"$f":"IF(Config!$V$2=\"FR\",Config!D82,Config!E82)","v":"Désactivé"},"Nürburgring Endurance",579,179,81,0.79,"x8,1"]
[null,null,null,"Activée","On",{"$f":"IF(Config!$V$2=\"FR\",Config!D83,Config!E83)","v":"Activée"},"Nürburgring GP ",580,180,82,0.8,"x8,2"]
[null,null,null,null,null,null,"Nürburgring Nordschleife",581,181,83,0.81,"x8,3"]
[null,null,null,"Aucune restriction","No Limit",{"$f":"IF(Config!$V$2=\"FR\",Config!D85,Config!E85)","v":"Aucune restriction"},"Nürburgring Sprint",582,182,84,0.82,"x8,4"]
[null,null,null,"Interdit","Fobidden",{"$f":"IF(Config!$V$2=\"FR\",Config!D86,Config!E86)","v":"Interdit"},"Red Bull Ring ",583,183,85,0.83,"x8,5"]
[null,null,null,null,null,null,"Red Bull Ring - Court",584,184,86,0.84,"x8,6"]
[null,null,null,null,null,null,"Sardegna - Eoliennes",585,185,87,0.85,"x8,7"]
[null,null,null,null,null,null,"Sardegna - Eoliennes II",586,186,88,0.86,"x8,8"]
[null,null,null,null,null,null,"Sardegna - Piste A",587,187,89,0.87,"x8,9"]
[null,null,null,null,null,null,"Sardegna - Piste A II",588,188,90,0.88,"x9,0"]
[null,null,null,null,null,null,"Sardegna - Piste B ",589,189,91,0.89,"x9,1"]
[null,null,null,null,null,null,"Sardegna - Piste B II",590,190,92,0.9,"x9,2"]
[null,null,null,null,null,null,"Sardegna - Piste C ",591,191,93,0.91,"x9,3"]
[null,null,null,null,null,null,"Sardegna - Piste C II",592,192,94,0.92,"x9,4"]
[null,null,null,null,null,null,"Special Stage Route X ",593,193,95,0.93,"x9,5"]
[null,null,null,null,null,null,"Suzuka Circuit ",594,194,96,0.94,"x9,6"]
[null,null,null,null,null,null,"Suzuka Circuit - Course Est",595,195,97,0.95,"x9,7"]
[null,null,null,null,null,null,"Tokyo Expressway - Centrale dans le sens horaire",596,196,98,0.96,"x9,8"]
[null,null,null,null,null,null,"Tokyo Expressway - Centrale dans le sens horaire II",597,197,99,0.97,"x9,9"]
[null,null,null,null,null,null,"Tokyo Expressway - Est dans le sens horaire",598,198,100,0.98,"x10,0"]
[null,null,null,null,null,null,"Tokyo Expressway - Est dans le sens horaire II",599,199,101,0.99]
[null,null,null,null,null,null,"Tokyo Expressway - Sud dans le sens horaire",600,200,102,1]
[null,null,null,null,null,null,"Tokyo Expressway - Sud dans le sens horaire II",601,201,103]
[null,null,null,null,null,null,"Tracé des 24 Heures de Spa",602,202,104]
[null,null,null,null,null,null,"Trial Mountain Circuit",603,203,105]
[null,null,null,null,null,null,"Trial Mountain Circuit II",604,204,106]
[null,null,null,null,null,null,"Tsukuba Circuit ",605,205,107]
[null,null,null,null,null,null,"Watkins Glen - Parcours Court",606,206,108]
[null,null,null,null,null,null,"Watkins Glen - Parcours long",607,207,109]
[null,null,null,null,null,null,"WeatherTech Raceway Laguna seca",608,208,110]
[null,null,null,null,null,null,"Willow Springs International Raceway : Big Willow ",609,209,111]
[null,null,null,null,null,null,"Willow Springs International Raceway : Horse Thief Mile",610,210,112]
[null,null,null,null,null,null,"Willow Springs International Raceway : Horse Thief Mile II",611,211,113]
[null,null,null,null,null,null,"Willow Springs International Raceway : Streets of Willow Springs",612,212,114]
[null,null,null,null,null,null,"Willow Springs International Raceway : Streets of Willow Springs II",613,213,115]
[null,null,null,null,null,null,null,614,214,116]
[null,null,null,null,null,null,null,615,215,117]
[null,null,null,null,null,null,null,616,216,118]
[null,null,null,null,null,null,null,617,217,119]
[null,null,null,null,null,null,null,618,218,120]
[null,null,null,null,null,null,null,619,219,121]
[null,null,null,null,null,null,null,620,220,122]
[null,null,null,null,null,null,null,621,221,123]
[null,null,null,null,null,null,null,622,222,124]
[null,null,null,null,null,null,null,623,223,125]
[null,null,null,null,null,null,null,624,224,126]
[null,null,null,null,null,null,null,625,225,127]
[null,null,null,null,null,null,null,626,226,128]
[null,null,null,null,null,null,null,627,227,129]
[null,null,null,null,null,null,null,628,228,130]
[null,null,null,null,null,null,null,629,229,131]
[null,null,null,null,null,null,null,630,230,132]
[null,null,null,null,null,null,null,631,231,133]
[null,null,null,null,null,null,null,632,232,134]
[null,null,null,null,null,null,null,633,233,135]
[null,null,null,null,null,null,null,634,234,136]
[null,null,null,null,null,null,null,635,235,137]
[null,null,null,null,null,null,null,636,236,138]
[null,null,null,null,null,null,null,637,237,139]
[null,null,null,null,null,null,null,638,238,140]
[null,null,null,null,null,null,null,639,239,141]
[null,null,null,null,null,null,null,640,240,142]
[null,null,null,null,null,null,null,641,241,143]
[null,null,null,null,null,null,null,642,242,144]
[null,null,null,null,null,null,null,643,243,145]
[null,null,null,null,null,null,null,644,244,146]
[null,null,null,null,null,null,null,645,245,147]
[null,null,null,null,null,null,null,646,246,148]
[null,null,null,null,null,null,null,647,247,149]
[null,null,null,null,null,null,null,648,248,150]
[null,null,null,null,null,null,null,649,249,151]
[null,null,null,null,null,null,null,650,250,152]
[null,null,null,null,null,null,null,651,251,153]
[null,null,null,null,null,null,null,652,252,154]
[null,null,null,null,null,null,null,653,253,155]
[null,null,null,null,null,null,null,654,254,156]
[null,null,null,null,null,null,null,655,255,157]
[null,null,null,null,null,null,null,656,256,158]
[null,null,null,null,null,null,null,657,257,159]
[null,null,null,null,null,null,null,658,258,160]
[null,null,null,null,null,null,null,659,259,161]
[null,null,null,null,null,null,null,660,260,162]
[null,null,null,null,null,null,null,661,261,163]
[null,null,null,null,null,null,null,662,262,164]
[null,null,null,null,null,null,null,663,263,165]
[null,null,null,null,null,null,null,664,264,166]
[null,null,null,null,null,null,null,665,265,167]
[null,null,null,null,null,null,null,666,266,168]
[null,null,null,null,null,null,null,667,267,169]
[null,null,null,null,null,null,null,668,268,170]
[null,null,null,null,null,null,null,669,269,171]
[null,null,null,null,null,null,null,670,270,172]
[null,null,null,null,null,null,null,671,271,173]
[null,null,null,null,null,null,null,672,272,174]
[null,null,null,null,null,null,null,673,273,175]
[null,null,null,null,null,null,null,674,274,176]
[null,null,null,null,null,null,null,675,275,177]
[null,null,null,null,null,null,null,676,276,178]
[null,null,null,null,null,null,null,677,277,179]
[null,null,null,null,null,null,null,678,278,180]
[null,null,null,null,null,null,null,679,279,181]
[null,null,null,null,null,null,null,680,280,182]
[null,null,null,null,null,null,null,681,281,183]
[null,null,null,null,null,null,null,682,282,184]
[null,null,null,null,null,null,null,683,283,185]
[null,null,null,null,null,null,null,684,284,186]
[null,null,null,null,null,null,null,685,285,187]
[null,null,null,null,null,null,null,686,286,188]
[null,null,null,null,null,null,null,687,287,189]
[null,null,null,null,null,null,null,688,288,190]
[null,null,null,null,null,null,null,689,289,191]
[null,null,null,null,null,null,null,690,290,192]
[null,null,null,null,null,null,null,691,291,193]
[null,null,null,null,null,null,null,692,292,194]
[null,null,null,null,null,null,null,693,293,195]
[null,null,null,null,null,null,null,694,294,196]
[null,null,null,null,null,null,null,695,295,197]
[null,null,null,null,null,null,null,696,296,198]
[null,null,null,null,null,null,null,697,297,199]
[null,null,null,null,null,null,null,698,298,200]
[null,null,null,null,null,null,null,699,299]
[null,null,null,null,null,null,null,700,300]
[null,null,null,null,null,null,null,701,301]
[null,null,null,null,null,null,null,702,302]
[null,null,null,null,null,null,null,703,303]
[null,null,null,null,null,null,null,704,304]
[null,null,null,null,null,null,null,705,305]
[null,null,null,null,null,null,null,706,306]
[null,null,null,null,null,null,null,707,307]
[null,null,null,null,null,null,null,708,308]
[null,null,null,null,null,null,null,709,309]
[null,null,null,null,null,null,null,710,310]
[null,null,null,null,null,null,null,711,311]
[null,null,null,null,null,null,null,712,312]
[null,null,null,null,null,null,null,713,313]
[null,null,null,null,null,null,null,714,314]
[null,null,null,null,null,null,null,715,315]
[null,null,null,null,null,null,null,716,316]
[null,null,null,null,null,null,null,717,317]
[null,null,null,null,null,null,null,718,318]
[null,null,null,null,null,null,null,719,319]
[null,null,null,null,null,null,null,720,320]
[null,null,null,null,null,null,null,721,321]
[null,null,null,null,null,null,null,722,322]
[null,null,null,null,null,null,null,723,323]
[null,null,null,null,null,null,null,724,324]
[null,null,null,null,null,null,null,725,325]
[null,null,null,null,null,null,null,726,326]
[null,null,null,null,null,null,null,727,327]
[null,null,null,null,null,null,null,728,328]
[null,null,null,null,null,null,null,729,329]
[null,null,null,null,null,null,null,730,330]
[null,null,null,null,null,null,null,731,331]
[null,null,null,null,null,null,null,732,332]
[null,null,null,null,null,null,null,733,333]
[null,null,null,null,null,null,null,734,334]
[null,null,null,null,null,null,null,735,335]
[null,null,null,null,null,null,null,736,336]
[null,null,null,null,null,null,null,737,337]
[null,null,null,null,null,null,null,738,338]
[null,null,null,null,null,null,null,739,339]
[null,null,null,null,null,null,null,740,340]
[null,null,null,null,null,null,null,741,341]
[null,null,null,null,null,null,null,742,342]
[null,null,null,null,null,null,null,743,343]
[null,null,null,null,null,null,null,744,344]
[null,null,null,null,null,null,null,745,345]
[null,null,null,null,null,null,null,746,346]
[null,null,null,null,null,null,null,747,347]
[null,null,null,null,null,null,null,748,348]
[null,null,null,null,null,null,null,749,349]
[null,null,null,null,null,null,null,750,350]
[null,null,null,null,null,null,null,751,351]
[null,null,null,null,null,null,null,752,352]
[null,null,null,null,null,null,null,753,353]
[null,null,null,null,null,null,null,754,354]
[null,null,null,null,null,null,null,755,355]
[null,null,null,null,null,null,null,756,356]
[null,null,null,null,null,null,null,757,357]
[null,null,null,null,null,null,null,758,358]
[null,null,null,null,null,null,null,759,359]
[null,null,null,null,null,null,null,760,360]
[null,null,null,null,null,null,null,761,361]
[null,null,null,null,null,null,null,762,362]
[null,null,null,null,null,null,null,763,363]
[null,null,null,null,null,null,null,764,364]
[null,null,null,null,null,null,null,765,365]
[null,null,null,null,null,null,null,766,366]
[null,null,null,null,null,null,null,767,367]
[null,null,null,null,null,null,null,768,368]
[null,null,null,null,null,null,null,769,369]
[null,null,null,null,null,null,null,770,370]
[null,null,null,null,null,null,null,771,371]
[null,null,null,null,null,null,null,772,372]
[null,null,null,null,null,null,null,773,373]
[null,null,null,null,null,null,null,774,374]
[null,null,null,null,null,null,null,775,375]
[null,null,null,null,null,null,null,776,376]
[null,null,null,null,null,null,null,777,377]
[null,null,null,null,null,null,null,778,378]
[null,null,null,null,null,null,null,779,379]
[null,null,null,null,null,null,null,780,380]
[null,null,null,null,null,null,null,781,381]
[null,null,null,null,null,null,null,782,382]
[null,null,null,null,null,null,null,783,383]
[null,null,null,null,null,null,null,784,384]
[null,null,null,null,null,null,null,785,385]
[null,null,null,null,null,null,null,786,386]
[null,null,null,null,null,null,null,787,387]
[null,null,null,null,null,null,null,788,388]
[null,null,null,null,null,null,null,789,389]
[null,null,null,null,null,null,null,790,390]
[null,null,null,null,null,null,null,791,391]
[null,null,null,null,null,null,null,792,392]
[null,null,null,null,null,null,null,793,393]
[null,null,null,null,null,null,null,794,394]
[null,null,null,null,null,null,null,795,395]
[null,null,null,null,null,null,null,796,396]
[null,null,null,null,null,null,null,797,397]
[null,null,null,null,null,null,null,798,398]
[null,null,null,null,null,null,null,799,399]
[null,null,null,null,null,null,null,800,400]
[null,null,null,null,null,null,null,801,401]
[null,null,null,null,null,null,null,802,402]
[null,null,null,null,null,null,null,803,403]
[null,null,null,null,null,null,null,804,404]
[null,null,null,null,null,null,null,805,405]
[null,null,null,null,null,null,null,806,406]
[null,null,null,null,null,null,null,807,407]
[null,null,null,null,null,null,null,808,408]
[null,null,null,null,null,null,null,809,409]
[null,null,null,null,null,null,null,810,410]
[null,null,null,null,null,null,null,811,411]
[null,null,null,null,null,null,null,812,412]
[null,null,null,null,null,null,null,813,413]
[null,null,null,null,null,null,null,814,414]
[null,null,null,null,null,null,null,815,415]
[null,null,null,null,null,null,null,816,416]
[null,null,null,null,null,null,null,817,417]
[null,null,null,null,null,null,null,818,418]
[null,null,null,null,null,null,null,819,419]
[null,null,null,null,null,null,null,820,420]
[null,null,null,null,null,null,null,821,421]
[null,null,null,null,null,null,null,822,422]
[null,null,null,null,null,null,null,823,423]
[null,null,null,null,null,null,null,824,424]
[null,null,null,null,null,null,null,825,425]
[null,null,null,null,null,null,null,826,426]
[null,null,null,null,null,null,null,827,427]
[null,null,null,null,null,null,null,828,428]
[null,null,null,null,null,null,null,829,429]
[null,null,null,null,null,null,null,830,430]
[null,null,null,null,null,null,null,831,431]
[null,null,null,null,null,null,null,832,432]
[null,null,null,null,null,null,null,833,433]
[null,null,null,null,null,null,null,834,434]
[null,null,null,null,null,null,null,835,435]
[null,null,null,null,null,null,null,836,436]
[null,null,null,null,null,null,null,837,437]
[null,null,null,null,null,null,null,838,438]
[null,null,null,null,null,null,null,839,439]
[null,null,null,null,null,null,null,840,440]
[null,null,null,null,null,null,null,841,441]
[null,null,null,null,null,null,null,842,442]
[null,null,null,null,null,null,null,843,443]
[null,null,null,null,null,null,null,844,444]
[null,null,null,null,null,null,null,845,445]
[null,null,null,null,null,null,null,846,446]
[null,null,null,null,null,null,null,847,447]
[null,null,null,null,null,null,null,848,448]
[null,null,null,null,null,null,null,849,449]
[null,null,null,null,null,null,null,850,450]
[null,null,null,null,null,null,null,851,451]
[null,null,null,null,null,null,null,852,452]
[null,null,null,null,null,null,null,853,453]
[null,null,null,null,null,null,null,854,454]
[null,null,null,null,null,null,null,855,455]
[null,null,null,null,null,null,null,856,456]
[null,null,null,null,null,null,null,857,457]
[null,null,null,null,null,null,null,858,458]
[null,null,null,null,null,null,null,859,459]
[null,null,null,null,null,null,null,860,460]
[null,null,null,null,null,null,null,861,461]
[null,null,null,null,null,null,null,862,462]
[null,null,null,null,null,null,null,863,463]
[null,null,null,null,null,null,null,864,464]
[null,null,null,null,null,null,null,865,465]
[null,null,null,null,null,null,null,866,466]
[null,null,null,null,null,null,null,867,467]
[null,null,null,null,null,null,null,868,468]
[null,null,null,null,null,null,null,869,469]
[null,null,null,null,null,null,null,870,470]
[null,null,null,null,null,null,null,871,471]
[null,null,null,null,null,null,null,872,472]
[null,null,null,null,null,null,null,873,473]
[null,null,null,null,null,null,null,874,474]
[null,null,null,null,null,null,null,875,475]
[null,null,null,null,null,null,null,876,476]
[null,null,null,null,null,null,null,877,477]
[null,null,null,null,null,null,null,878,478]
[null,null,null,null,null,null,null,879,479]
[null,null,null,null,null,null,null,880,480]
[null,null,null,null,null,null,null,881,481]
[null,null,null,null,null,null,null,882,482]
[null,null,null,null,null,null,null,883,483]
[null,null,null,null,null,null,null,884,484]
[null,null,null,null,null,null,null,885,485]
[null,null,null,null,null,null,null,886,486]
[null,null,null,null,null,null,null,887,487]
[null,null,null,null,null,null,null,888,488]
[null,null,null,null,null,null,null,889,489]
[null,null,null,null,null,null,null,890,490]
[null,null,null,null,null,null,null,891,491]
[null,null,null,null,null,null,null,892,492]
[null,null,null,null,null,null,null,893,493]
[null,null,null,null,null,null,null,894,494]
[null,null,null,null,null,null,null,895,495]
[null,null,null,null,null,null,null,896,496]
[null,null,null,null,null,null,null,897,497]
[null,null,null,null,null,null,null,898,498]
[null,null,null,null,null,null,null,899,499]
[null,null,null,null,null,null,null,900,500]
[null,null,null,null,null,null,null,901,501]
[null,null,null,null,null,null,null,902,502]
[null,null,null,null,null,null,null,903,503]
[null,null,null,null,null,null,null,904,504]
[null,null,null,null,null,null,null,905,505]
[null,null,null,null,null,null,null,906,506]
[null,null,null,null,null,null,null,907,507]
[null,null,null,null,null,null,null,908,508]
[null,null,null,null,null,null,null,909,509]
[null,null,null,null,null,null,null,910,510]
[null,null,null,null,null,null,null,911,511]
[null,null,null,null,null,null,null,912,512]
[null,null,null,null,null,null,null,913,513]
[null,null,null,null,null,null,null,914,514]
[null,null,null,null,null,null,null,915,515]
[null,null,null,null,null,null,null,916,516]
[null,null,null,null,null,null,null,917,517]
[null,null,null,null,null,null,null,918,518]
[null,null,null,null,null,null,null,919,519]
[null,null,null,null,null,null,null,920,520]
[null,null,null,null,null,null,null,921,521]
[null,null,null,null,null,null,null,922,522]
[null,null,null,null,null,null,null,923,523]
[null,null,null,null,null,null,null,924,524]
[null,null,null,null,null,null,null,925,525]
[null,null,null,null,null,null,null,926,526]
[null,null,null,null,null,null,null,927,527]
[null,null,null,null,null,null,null,928,528]
[null,null,null,null,null,null,null,929,529]
[null,null,null,null,null,null,null,930,530]
[null,null,null,null,null,null,null,931,531]
[null,null,null,null,null,null,null,932,532]
[null,null,null,null,null,null,null,933,533]
[null,null,null,null,null,null,null,934,534]
[null,null,null,null,null,null,null,935,535]
[null,null,null,null,null,null,null,936,536]
[null,null,null,null,null,null,null,937,537]
[null,null,null,null,null,null,null,938,538]
[null,null,null,null,null,null,null,939,539]
[null,null,null,null,null,null,null,940,540]
[null,null,null,null,null,null,null,941,541]
[null,null,null,null,null,null,null,942,542]
[null,null,null,null,null,null,null,943,543]
[null,null,null,null,null,null,null,944,544]
[null,null,null,null,null,null,null,945,545]
[null,null,null,null,null,null,null,946,546]
[null,null,null,null,null,null,null,947,547]
[null,null,null,null,null,null,null,948,548]
[null,null,null,null,null,null,null,949,549]
[null,null,null,null,null,null,null,950,550]
[null,null,null,null,null,null,null,951,551]
[null,null,null,null,null,null,null,952,552]
[null,null,null,null,null,null,null,953,553]
[null,null,null,null,null,null,null,954,554]
[null,null,null,null,null,null,null,955,555]
[null,null,null,null,null,null,null,956,556]
[null,null,null,null,null,null,null,957,557]
[null,null,null,null,null,null,null,958,558]
[null,null,null,null,null,null,null,959,559]
[null,null,null,null,null,null,null,960,560]
[null,null,null,null,null,null,null,961,561]
[null,null,null,null,null,null,null,962,562]
[null,null,null,null,null,null,null,963,563]
[null,null,null,null,null,null,null,964,564]
[null,null,null,null,null,null,null,965,565]
[null,null,null,null,null,null,null,966,566]
[null,null,null,null,null,null,null,967,567]
[null,null,null,null,null,null,null,968,568]
[null,null,null,null,null,null,null,969,569]
[null,null,null,null,null,null,null,970,570]
[null,null,null,null,null,null,null,971,571]
[null,null,null,null,null,null,null,972,572]
[null,null,null,null,null,null,null,973,573]
[null,null,null,null,null,null,null,974,574]
[null,null,null,null,null,null,null,975,575]
[null,null,null,null,null,null,null,976,576]
[null,null,null,null,null,null,null,977,577]
[null,null,null,null,null,null,null,978,578]
[null,null,null,null,null,null,null,979,579]
[null,null,null,null,null,null,null,980,580]
[null,null,null,null,null,null,null,981,581]
[null,null,null,null,null,null,null,982,582]
[null,null,null,null,null,null,null,983,583]
[null,null,null,null,null,null,null,984,584]
[null,null,null,null,null,null,null,985,585]
[null,null,null,null,null,null,null,986,586]
[null,null,null,null,null,null,null,987,587]
[null,null,null,null,null,null,null,988,588]
[null,null,null,null,null,null,null,989,589]
[null,null,null,null,null,null,null,990,590]
[null,null,null,null,null,null,null,991,591]
[null,null,null,null,null,null,null,992,592]
[null,null,null,null,null,null,null,993,593]
[null,null,null,null,null,null,null,994,594]
[null,null,null,null,null,null,null,995,595]
[null,null,null,null,null,null,null,996,596]
[null,null,null,null,null,null,null,997,597]
[null,null,null,null,null,null,null,998,598]
[null,null,null,null,null,null,null,999,599]
[null,null,null,null,null,null,null,1000,600]
[null,null,null,null,null,null,null,1001,601]
[null,null,null,null,null,null,null,1002,602]
[null,null,null,null,null,null,null,1003,603]
[null,null,null,null,null,null,null,1004,604]
[null,null,null,null,null,null,null,1005,605]
[null,null,null,null,null,null,null,1006,606]
[null,null,null,null,null,null,null,1007,607]
[null,null,null,null,null,null,null,1008,608]
[null,null,null,null,null,null,null,1009,609]
[null,null,null,null,null,null,null,1010,610]
[null,null,null,null,null,null,null,1011,611]
[null,null,null,null,null,null,null,1012,612]
[null,null,null,null,null,null,null,1013,613]
[null,null,null,null,null,null,null,1014,614]
[null,null,null,null,null,null,null,1015,615]
[null,null,null,null,null,null,null,1016,616]
[null,null,null,null,null,null,null,1017,617]
[null,null,null,null,null,null,null,1018,618]
[null,null,null,null,null,null,null,1019,619]
[null,null,null,null,null,null,null,1020,620]
[null,null,null,null,null,null,null,1021,621]
[null,null,null,null,null,null,null,1022,622]
[null,null,null,null,null,null,null,1023,623]
[null,null,null,null,null,null,null,1024,624]
[null,null,null,null,null,null,null,1025,625]
[null,null,null,null,null,null,null,1026,626]
[null,null,null,null,null,null,null,1027,627]
[null,null,null,null,null,null,null,1028,628]
[null,null,null,null,null,null,null,1029,629]
[null,null,null,null,null,null,null,1030,630]
[null,null,null,null,null,null,null,1031,631]
[null,null,null,null,null,null,null,1032,632]
[null,null,null,null,null,null,null,1033,633]
[null,null,null,null,null,null,null,1034,634]
[null,null,null,null,null,null,null,1035,635]
[null,null,null,null,null,null,null,1036,636]
[null,null,null,null,null,null,null,1037,637]
[null,null,null,null,null,null,null,1038,638]
[null,null,null,null,null,null,null,1039,639]
[null,null,null,null,null,null,null,1040,640]
[null,null,null,null,null,null,null,1041,641]
[null,null,null,null,null,null,null,1042,642]
[null,null,null,null,null,null,null,1043,643]
[null,null,null,null,null,null,null,1044,644]
[null,null,null,null,null,null,null,1045,645]
[null,null,null,null,null,null,null,1046,646]
[null,null,null,null,null,null,null,1047,647]
[null,null,null,null,null,null,null,1048,648]
[null,null,null,null,null,null,null,1049,649]
[null,null,null,null,null,null,null,1050,650]
[null,null,null,null,null,null,null,1051,651]
[null,null,null,null,null,null,null,1052,652]
[null,null,null,null,null,null,null,1053,653]
[null,null,null,null,null,null,null,1054,654]
[null,null,null,null,null,null,null,1055,655]
[null,null,null,null,null,null,null,1056,656]
[null,null,null,null,null,null,null,1057,657]
[null,null,null,null,null,null,null,1058,658]
[null,null,null,null,null,null,null,1059,659]
[null,null,null,null,null,null,null,1060,660]
[null,null,null,null,null,null,null,1061,661]
[null,null,null,null,null,null,null,1062,662]
[null,null,null,null,null,null,null,1063,663]
[null,null,null,null,null,null,null,1064,664]
[null,null,null,null,null,null,null,1065,665]
[null,null,null,null,null,null,null,1066,666]
[null,null,null,null,null,null,null,1067,667]
[null,null,null,null,null,null,null,1068,668]
[null,null,null,null,null,null,null,1069,669]
[null,null,null,null,null,null,null,1070,670]
[null,null,null,null,null,null,null,1071,671]
[null,null,null,null,null,null,null,1072,672]
[null,null,null,null,null,null,null,1073,673]
[null,null,null,null,null,null,null,1074,674]
[null,null,null,null,null,null,null,1075,675]
[null,null,null,null,null,null,null,1076,676]
[null,null,null,null,null,null,null,1077,677]
[null,null,null,null,null,null,null,1078,678]
[null,null,null,null,null,null,null,1079,679]
[null,null,null,null,null,null,null,1080,680]
[null,null,null,null,null,null,null,1081,681]
[null,null,null,null,null,null,null,1082,682]
[null,null,null,null,null,null,null,1083,683]
[null,null,null,null,null,null,null,1084,684]
[null,null,null,null,null,null,null,1085,685]
[null,null,null,null,null,null,null,1086,686]
[null,null,null,null,null,null,null,1087,687]
[null,null,null,null,null,null,null,1088,688]
[null,null,null,null,null,null,null,1089,689]
[null,null,null,null,null,null,null,1090,690]
[null,null,null,null,null,null,null,1091,691]
[null,null,null,null,null,null,null,1092,692]
[null,null,null,null,null,null,null,1093,693]
[null,null,null,null,null,null,null,1094,694]
[null,null,null,null,null,null,null,1095,695]
[null,null,null,null,null,null,null,1096,696]
[null,null,null,null,null,null,null,1097,697]
[null,null,null,null,null,null,null,1098,698]
[null,null,null,null,null,null,null,1099,699]
[null,null,null,null,null,null,null,1100,700]
[null,null,null,null,null,null,null,1101,701]
[null,null,null,null,null,null,null,1102,702]
[null,null,null,null,null,null,null,1103,703]
[null,null,null,null,null,null,null,1104,704]
[null,null,null,null,null,null,null,1105,705]
[null,null,null,null,null,null,null,1106,706]
[null,null,null,null,null,null,null,1107,707]
[null,null,null,null,null,null,null,1108,708]
[null,null,null,null,null,null,null,1109,709]
[null,null,null,null,null,null,null,1110,710]
[null,null,null,null,null,null,null,1111,711]
[null,null,null,null,null,null,null,1112,712]
[null,null,null,null,null,null,null,1113,713]
[null,null,null,null,null,null,null,1114,714]
[null,null,null,null,null,null,null,1115,715]
[null,null,null,null,null,null,null,1116,716]
[null,null,null,null,null,null,null,1117,717]
[null,null,null,null,null,null,null,1118,718]
[null,null,null,null,null,null,null,1119,719]
[null,null,null,null,null,null,null,1120,720]
[null,null,null,null,null,null,null,1121,721]
[null,null,null,null,null,null,null,1122,722]
[null,null,null,null,null,null,null,1123,723]
[null,null,null,null,null,null,null,1124,724]
[null,null,null,null,null,null,null,1125,725]
[null,null,null,null,null,null,null,1126,726]
[null,null,null,null,null,null,null,1127,727]
[null,null,null,null,null,null,null,1128,728]
[null,null,null,null,null,null,null,1129,729]
[null,null,null,null,null,null,null,1130,730]
[null,null,null,null,null,null,null,1131,731]
[null,null,null,null,null,null,null,1132,732]
[null,null,null,null,null,null,null,1133,733]
[null,null,null,null,null,null,null,1134,734]
[null,null,null,null,null,null,null,1135,735]
[null,null,null,null,null,null,null,1136,736]
[null,null,null,null,null,null,null,1137,737]
[null,null,null,null,null,null,null,1138,738]
[null,null,null,null,null,null,null,1139,739]
[null,null,null,null,null,null,null,1140,740]
[null,null,null,null,null,null,null,1141,741]
[null,null,null,null,null,null,null,1142,742]
[null,null,null,null,null,null,null,1143,743]
[null,null,null,null,null,null,null,1144,744]
[null,null,null,null,null,null,null,1145,745]
[null,null,null,null,null,null,null,1146,746]
[null,null,null,null,null,null,null,1147,747]
[null,null,null,null,null,null,null,1148,748]
[null,null,null,null,null,null,null,1149,749]
[null,null,null,null,null,null,null,1150,750]
[null,null,null,null,null,null,null,1151,751]
[null,null,null,null,null,null,null,1152,752]
[null,null,null,null,null,null,null,1153,753]
[null,null,null,null,null,null,null,1154,754]
[null,null,null,null,null,null,null,1155,755]
[null,null,null,null,null,null,null,1156,756]
[null,null,null,null,null,null,null,1157,757]
[null,null,null,null,null,null,null,1158,758]
[null,null,null,null,null,null,null,1159,759]
[null,null,null,null,null,null,null,1160,760]
[null,null,null,null,null,null,null,1161,761]
[null,null,null,null,null,null,null,1162,762]
[null,null,null,null,null,null,null,1163,763]
[null,null,null,null,null,null,null,1164,764]
[null,null,null,null,null,null,null,1165,765]
[null,null,null,null,null,null,null,1166,766]
[null,null,null,null,null,null,null,1167,767]
[null,null,null,null,null,null,null,1168,768]
[null,null,null,null,null,null,null,1169,769]
[null,null,null,null,null,null,null,1170,770]
[null,null,null,null,null,null,null,1171,771]
[null,null,null,null,null,null,null,1172,772]
[null,null,null,null,null,null,null,1173,773]
[null,null,null,null,null,null,null,1174,774]
[null,null,null,null,null,null,null,1175,775]
[null,null,null,null,null,null,null,1176,776]
[null,null,null,null,null,null,null,1177,777]
[null,null,null,null,null,null,null,1178,778]
[null,null,null,null,null,null,null,1179,779]
[null,null,null,null,null,null,null,1180,780]
[null,null,null,null,null,null,null,1181,781]
[null,null,null,null,null,null,null,1182,782]
[null,null,null,null,null,null,null,1183,783]
[null,null,null,null,null,null,null,1184,784]
[null,null,null,null,null,null,null,1185,785]
[null,null,null,null,null,null,null,1186,786]
[null,null,null,null,null,null,null,1187,787]
[null,null,null,null,null,null,null,1188,788]
[null,null,null,null,null,null,null,1189,789]
[null,null,null,null,null,null,null,1190,790]
[null,null,null,null,null,null,null,1191,791]
[null,null,null,null,null,null,null,1192,792]
[null,null,null,null,null,null,null,1193,793]
[null,null,null,null,null,null,null,1194,794]
[null,null,null,null,null,null,null,1195,795]
[null,null,null,null,null,null,null,1196,796]
[null,null,null,null,null,null,null,1197,797]
[null,null,null,null,null,null,null,1198,798]
[null,null,null,null,null,null,null,1199,799]
[null,null,null,null,null,null,null,1200,800]
[null,null,null,null,null,null,null,1201,801]
[null,null,null,null,null,null,null,1202,802]
[null,null,null,null,null,null,null,1203,803]
[null,null,null,null,null,null,null,1204,804]
[null,null,null,null,null,null,null,1205,805]
[null,null,null,null,null,null,null,1206,806]
[null,null,null,null,null,null,null,1207,807]
[null,null,null,null,null,null,null,1208,808]
[null,null,null,null,null,null,null,1209,809]
[null,null,null,null,null,null,null,1210,810]
[null,null,null,null,null,null,null,1211,811]
[null,null,null,null,null,null,null,1212,812]
[null,null,null,null,null,null,null,1213,813]
[null,null,null,null,null,null,null,1214,814]
[null,null,null,null,null,null,null,1215,815]
[null,null,null,null,null,null,null,1216,816]
[null,null,null,null,null,null,null,1217,817]
[null,null,null,null,null,null,null,1218,818]
[null,null,null,null,null,null,null,1219,819]
[null,null,null,null,null,null,null,1220,820]
[null,null,null,null,null,null,null,1221,821]
[null,null,null,null,null,null,null,1222,822]
[null,null,null,null,null,null,null,1223,823]
[null,null,null,null,null,null,null,1224,824]
[null,null,null,null,null,null,null,1225,825]
[null,null,null,null,null,null,null,1226,826]
[null,null,null,null,null,null,null,1227,827]
[null,null,null,null,null,null,null,1228,828]
[null,null,null,null,null,null,null,1229,829]
[null,null,null,null,null,null,null,1230,830]
[null,null,null,null,null,null,null,1231,831]
[null,null,null,null,null,null,null,1232,832]
[null,null,null,null,null,null,null,1233,833]
[null,null,null,null,null,null,null,1234,834]
[null,null,null,null,null,null,null,1235,835]
[null,null,null,null,null,null,null,1236,836]
[null,null,null,null,null,null,null,1237,837]
[null,null,null,null,null,null,null,1238,838]
[null,null,null,null,null,null,null,1239,839]
[null,null,null,null,null,null,null,1240,840]
[null,null,null,null,null,null,null,1241,841]
[null,null,null,null,null,null,null,1242,842]
[null,null,null,null,null,null,null,1243,843]
[null,null,null,null,null,null,null,1244,844]
[null,null,null,null,null,null,null,1245,845]
[null,null,null,null,null,null,null,1246,846]
[null,null,null,null,null,null,null,1247,847]
[null,null,null,null,null,null,null,1248,848]
[null,null,null,null,null,null,null,1249,849]
[null,null,null,null,null,null,null,1250,850]
[null,null,null,null,null,null,null,1251,851]
[null,null,null,null,null,null,null,1252,852]
[null,null,null,null,null,null,null,1253,853]
[null,null,null,null,null,null,null,1254,854]
[null,null,null,null,null,null,null,1255,855]
[null,null,null,null,null,null,null,1256,856]
[null,null,null,null,null,null,null,1257,857]
[null,null,null,null,null,null,null,1258,858]
[null,null,null,null,null,null,null,1259,859]
[null,null,null,null,null,null,null,1260,860]
[null,null,null,null,null,null,null,1261,861]
[null,null,null,null,null,null,null,1262,862]
[null,null,null,null,null,null,null,1263,863]
[null,null,null,null,null,null,null,1264,864]
[null,null,null,null,null,null,null,1265,865]
[null,null,null,null,null,null,null,1266,866]
[null,null,null,null,null,null,null,1267,867]
[null,null,null,null,null,null,null,1268,868]
[null,null,null,null,null,null,null,1269,869]
[null,null,null,null,null,null,null,1270,870]
[null,null,null,null,null,null,null,1271,871]
[null,null,null,null,null,null,null,1272,872]
[null,null,null,null,null,null,null,1273,873]
[null,null,null,null,null,null,null,1274,874]
[null,null,null,null,null,null,null,1275,875]
[null,null,null,null,null,null,null,1276,876]
[null,null,null,null,null,null,null,1277,877]
[null,null,null,null,null,null,null,1278,878]
[null,null,null,null,null,null,null,1279,879]
[null,null,null,null,null,null,null,1280,880]
[null,null,null,null,null,null,null,1281,881]
[null,null,null,null,null,null,null,1282,882]
[null,null,null,null,null,null,null,1283,883]
[null,null,null,null,null,null,null,1284,884]
[null,null,null,null,null,null,null,1285,885]
[null,null,null,null,null,null,null,1286,886]
[null,null,null,null,null,null,null,1287,887]
[null,null,null,null,null,null,null,1288,888]
[null,null,null,null,null,null,null,1289,889]
[null,null,null,null,null,null,null,1290,890]
[null,null,null,null,null,null,null,1291,891]
[null,null,null,null,null,null,null,1292,892]
[null,null,null,null,null,null,null,1293,893]
[null,null,null,null,null,null,null,1294,894]
[null,null,null,null,null,null,null,1295,895]
[null,null,null,null,null,null,null,1296,896]
[null,null,null,null,null,null,null,1297,897]
[null,null,null,null,null,null,null,1298,898]
[null,null,null,null,null,null,null,1299,899]
[null,null,null,null,null,null,null,1300,900]
[null,null,null,null,null,null,null,1301,901]
[null,null,null,null,null,null,null,1302,902]
[null,null,null,null,null,null,null,1303,903]
[null,null,null,null,null,null,null,1304,904]
[null,null,null,null,null,null,null,1305,905]
[null,null,null,null,null,null,null,1306,906]
[null,null,null,null,null,null,null,1307,907]
[null,null,null,null,null,null,null,1308,908]
[null,null,null,null,null,null,null,1309,909]
[null,null,null,null,null,null,null,1310,910]
[null,null,null,null,null,null,null,1311,911]
[null,null,null,null,null,null,null,1312,912]
[null,null,null,null,null,null,null,1313,913]
[null,null,null,null,null,null,null,1314,914]
[null,null,null,null,null,null,null,1315,915]
[null,null,null,null,null,null,null,1316,916]
[null,null,null,null,null,null,null,1317,917]
[null,null,null,null,null,null,null,1318,918]
[null,null,null,null,null,null,null,1319,919]
[null,null,null,null,null,null,null,1320,920]
[null,null,null,null,null,null,null,1321,921]
[null,null,null,null,null,null,null,1322,922]
[null,null,null,null,null,null,null,1323,923]
[null,null,null,null,null,null,null,1324,924]
[null,null,null,null,null,null,null,1325,925]
[null,null,null,null,null,null,null,1326,926]
[null,null,null,null,null,null,null,1327,927]
[null,null,null,null,null,null,null,1328,928]
[null,null,null,null,null,null,null,1329,929]
[null,null,null,null,null,null,null,1330,930]
[null,null,null,null,null,null,null,1331,931]
[null,null,null,null,null,null,null,1332,932]
[null,null,null,null,null,null,null,1333,933]
[null,null,null,null,null,null,null,1334,934]
[null,null,null,null,null,null,null,1335,935]
[null,null,null,null,null,null,null,1336,936]
[null,null,null,null,null,null,null,1337,937]
[null,null,null,null,null,null,null,1338,938]
[null,null,null,null,null,null,null,1339,939]
[null,null,null,null,null,null,null,1340,940]
[null,null,null,null,null,null,null,1341,941]
[null,null,null,null,null,null,null,1342,942]
[null,null,null,null,null,null,null,1343,943]
[null,null,null,null,null,null,null,1344,944]
[null,null,null,null,null,null,null,1345,945]
[null,null,null,null,null,null,null,1346,946]
[null,null,null,null,null,null,null,1347,947]
[null,null,null,null,null,null,null,1348,948]
[null,null,null,null,null,null,null,1349,949]
[null,null,null,null,null,null,null,1350,950]
[null,null,null,null,null,null,null,1351,951]
[null,null,null,null,null,null,null,1352,952]
[null,null,null,null,null,null,null,1353,953]
[null,null,null,null,null,null,null,1354,954]
[null,null,null,null,null,null,null,1355,955]
[null,null,null,null,null,null,null,1356,956]
[null,null,null,null,null,null,null,1357,957]
[null,null,null,null,null,null,null,1358,958]
[null,null,null,null,null,null,null,1359,959]
[null,null,null,null,null,null,null,1360,960]
[null,null,null,null,null,null,null,1361,961]
[null,null,null,null,null,null,null,1362,962]
[null,null,null,null,null,null,null,1363,963]
[null,null,null,null,null,null,null,1364,964]
[null,null,null,null,null,null,null,1365,965]
[null,null,null,null,null,null,null,1366,966]
[null,null,null,null,null,null,null,1367,967]
[null,null,null,null,null,null,null,1368,968]
[null,null,null,null,null,null,null,1369,969]
[null,null,null,null,null,null,null,1370,970]
[null,null,null,null,null,null,null,1371,971]
[null,null,null,null,null,null,null,1372,972]
[null,null,null,null,null,null,null,1373,973]
[null,null,null,null,null,null,null,1374,974]
[null,null,null,null,null,null,null,1375,975]
[null,null,null,null,null,null,null,1376,976]
[null,null,null,null,null,null,null,1377,977]
[null,null,null,null,null,null,null,1378,978]
[null,null,null,null,null,null,null,1379,979]
[null,null,null,null,null,null,null,1380,980]
[null,null,null,null,null,null,null,1381,981]
[null,null,null,null,null,null,null,1382,982]
[null,null,null,null,null,null,null,1383,983]
[null,null,null,null,null,null,null,1384,984]
[null,null,null,null,null,null,null,1385,985]
[null,null,null,null,null,null,null,1386,986]
[null,null,null,null,null,null,null,1387,987]
[null,null,null,null,null,null,null,1388,988]
[null,null,null,null,null,null,null,1389,989]
[null,null,null,null,null,null,null,1390,990]
[null,null,null,null,null,null,null,1391,991]
[null,null,null,null,null,null,null,1392,992]
[null,null,null,null,null,null,null,1393,993]
[null,null,null,null,null,null,null,1394,994]
[null,null,null,null,null,null,null,1395,995]
[null,null,null,null,null,null,null,1396,996]
[null,null,null,null,null,null,null,1397,997]
[null,null,null,null,null,null,null,1398,998]
[null,null,null,null,null,null,null,1399,999]
[null,null,null,null,null,null,null,1400,1000]
[null,null,null,null,null,null,null,1401,1001]
[null,null,null,null,null,null,null,1402,1002]
[null,null,null,null,null,null,null,1403,1003]
[null,null,null,null,null,null,null,1404,1004]
[null,null,null,null,null,null,null,1405,1005]
[null,null,null,null,null,null,null,1406,1006]
[null,null,null,null,null,null,null,1407,1007]
[null,null,null,null,null,null,null,1408,1008]
[null,null,null,null,null,null,null,1409,1009]
[null,null,null,null,null,null,null,1410,1010]
[null,null,null,null,null,null,null,1411,1011]
[null,null,null,null,null,null,null,1412,1012]
[null,null,null,null,null,null,null,1413,1013]
[null,null,null,null,null,null,null,1414,1014]
[null,null,null,null,null,null,null,1415,1015]
[null,null,null,null,null,null,null,1416,1016]
[null,null,null,null,null,null,null,1417,1017]
[null,null,null,null,null,null,null,1418,1018]
[null,null,null,null,null,null,null,1419,1019]
[null,null,null,null,null,null,null,1420,1020]
[null,null,null,null,null,null,null,1421,1021]
[null,null,null,null,null,null,null,1422,1022]
[null,null,null,null,null,null,null,1423,1023]
[null,null,null,null,null,null,null,1424,1024]
[null,null,null,null,null,null,null,1425,1025]
[null,null,null,null,null,null,null,1426,1026]
[null,null,null,null,null,null,null,1427,1027]
[null,null,null,null,null,null,null,1428,1028]
[null,null,null,null,null,null,null,1429,1029]
[null,null,null,null,null,null,null,1430,1030]
[null,null,null,null,null,null,null,1431,1031]
[null,null,null,null,null,null,null,1432,1032]
[null,null,null,null,null,null,null,1433,1033]
[null,null,null,null,null,null,null,1434,1034]
[null,null,null,null,null,null,null,1435,1035]
[null,null,null,null,null,null,null,1436,1036]
[null,null,null,null,null,null,null,1437,1037]
[null,null,null,null,null,null,null,1438,1038]
[null,null,null,null,null,null,null,1439,1039]
[null,null,null,null,null,null,null,1440,1040]
[null,null,null,null,null,null,null,1441,1041]
[null,null,null,null,null,null,null,1442,1042]
[null,null,null,null,null,null,null,1443,1043]
[null,null,null,null,null,null,null,1444,1044]
[null,null,null,null,null,null,null,1445,1045]
[null,null,null,null,null,null,null,1446,1046]
[null,null,null,null,null,null,null,1447,1047]
[null,null,null,null,null,null,null,1448,1048]
[null,null,null,null,null,null,null,1449,1049]
[null,null,null,null,null,null,null,1450,1050]
[null,null,null,null,null,null,null,1451,1051]
[null,null,null,null,null,null,null,1452,1052]
[null,null,null,null,null,null,null,1453,1053]
[null,null,null,null,null,null,null,1454,1054]
[null,null,null,null,null,null,null,1455,1055]
[null,null,null,null,null,null,null,1456,1056]
[null,null,null,null,null,null,null,1457,1057]
[null,null,null,null,null,null,null,1458,1058]
[null,null,null,null,null,null,null,1459,1059]
[null,null,null,null,null,null,null,1460,1060]
[null,null,null,null,null,null,null,1461,1061]
[null,null,null,null,null,null,null,1462,1062]
[null,null,null,null,null,null,null,1463,1063]
[null,null,null,null,null,null,null,1464,1064]
[null,null,null,null,null,null,null,1465,1065]
[null,null,null,null,null,null,null,1466,1066]
[null,null,null,null,null,null,null,1467,1067]
[null,null,null,null,null,null,null,1468,1068]
[null,null,null,null,null,null,null,1469,1069]
[null,null,null,null,null,null,null,1470,1070]
[null,null,null,null,null,null,null,1471,1071]
[null,null,null,null,null,null,null,1472,1072]
[null,null,null,null,null,null,null,1473,1073]
[null,null,null,null,null,null,null,1474,1074]
[null,null,null,null,null,null,null,1475,1075]
[null,null,null,null,null,null,null,1476,1076]
[null,null,null,null,null,null,null,1477,1077]
[null,null,null,null,null,null,null,1478,1078]
[null,null,null,null,null,null,null,1479,1079]
[null,null,null,null,null,null,null,1480,1080]
[null,null,null,null,null,null,null,1481,1081]
[null,null,null,null,null,null,null,1482,1082]
[null,null,null,null,null,null,null,1483,1083]
[null,null,null,null,null,null,null,1484,1084]
[null,null,null,null,null,null,null,1485,1085]
[null,null,null,null,null,null,null,1486,1086]
[null,null,null,null,null,null,null,1487,1087]
[null,null,null,null,null,null,null,1488,1088]
[null,null,null,null,null,null,null,1489,1089]
[null,null,null,null,null,null,null,1490,1090]
[null,null,null,null,null,null,null,1491,1091]
[null,null,null,null,null,null,null,1492,1092]
[null,null,null,null,null,null,null,1493,1093]
[null,null,null,null,null,null,null,1494,1094]
[null,null,null,null,null,null,null,1495,1095]
[null,null,null,null,null,null,null,1496,1096]
[null,null,null,null,null,null,null,1497,1097]
[null,null,null,null,null,null,null,1498,1098]
[null,null,null,null,null,null,null,1499,1099]
[null,null,null,null,null,null,null,1500,1100]
[null,null,null,null,null,null,null,1501,1101]
[null,null,null,null,null,null,null,1502,1102]
[null,null,null,null,null,null,null,1503,1103]
[null,null,null,null,null,null,null,1504,1104]
[null,null,null,null,null,null,null,1505,1105]
[null,null,null,null,null,null,null,1506,1106]
[null,null,null,null,null,null,null,1507,1107]
[null,null,null,null,null,null,null,1508,1108]
[null,null,null,null,null,null,null,1509,1109]
[null,null,null,null,null,null,null,1510,1110]
[null,null,null,null,null,null,null,1511,1111]
[null,null,null,null,null,null,null,1512,1112]
[null,null,null,null,null,null,null,1513,1113]
[null,null,null,null,null,null,null,1514,1114]
[null,null,null,null,null,null,null,1515,1115]
[null,null,null,null,null,null,null,1516,1116]
[null,null,null,null,null,null,null,1517,1117]
[null,null,null,null,null,null,null,1518,1118]
[null,null,null,null,null,null,null,1519,1119]
[null,null,null,null,null,null,null,1520,1120]
[null,null,null,null,null,null,null,1521,1121]
[null,null,null,null,null,null,null,1522,1122]
[null,null,null,null,null,null,null,1523,1123]
[null,null,null,null,null,null,null,1524,1124]
[null,null,null,null,null,null,null,1525,1125]
[null,null,null,null,null,null,null,1526,1126]
[null,null,null,null,null,null,null,1527,1127]
[null,null,null,null,null,null,null,1528,1128]
[null,null,null,null,null,null,null,1529,1129]
[null,null,null,null,null,null,null,1530,1130]
[null,null,null,null,null,null,null,1531,1131]
[null,null,null,null,null,null,null,1532,1132]
[null,null,null,null,null,null,null,1533,1133]
[null,null,null,null,null,null,null,1534,1134]
[null,null,null,null,null,null,null,1535,1135]
[null,null,null,null,null,null,null,1536,1136]
[null,null,null,null,null,null,null,1537,1137]
[null,null,null,null,null,null,null,1538,1138]
[null,null,null,null,null,null,null,1539,1139]
[null,null,null,null,null,null,null,1540,1140]
[null,null,null,null,null,null,null,1541,1141]
[null,null,null,null,null,null,null,1542,1142]
[null,null,null,null,null,null,null,1543,1143]
[null,null,null,null,null,null,null,1544,1144]
[null,null,null,null,null,null,null,1545,1145]
[null,null,null,null,null,null,null,1546,1146]
[null,null,null,null,null,null,null,1547,1147]
[null,null,null,null,null,null,null,1548,1148]
[null,null,null,null,null,null,null,1549,1149]
[null,null,null,null,null,null,null,1550,1150]
[null,null,null,null,null,null,null,1551,1151]
[null,null,null,null,null,null,null,1552,1152]
[null,null,null,null,null,null,null,1553,1153]
[null,null,null,null,null,null,null,1554,1154]
[null,null,null,null,null,null,null,1555,1155]
[null,null,null,null,null,null,null,1556,1156]
[null,null,null,null,null,null,null,1557,1157]
[null,null,null,null,null,null,null,1558,1158]
[null,null,null,null,null,null,null,1559,1159]
[null,null,null,null,null,null,null,1560,1160]
[null,null,null,null,null,null,null,1561,1161]
[null,null,null,null,null,null,null,1562,1162]
[null,null,null,null,null,null,null,1563,1163]
[null,null,null,null,null,null,null,1564,1164]
[null,null,null,null,null,null,null,1565,1165]
[null,null,null,null,null,null,null,1566,1166]
[null,null,null,null,null,null,null,1567,1167]
[null,null,null,null,null,null,null,1568,1168]
[null,null,null,null,null,null,null,1569,1169]
[null,null,null,null,null,null,null,1570,1170]
[null,null,null,null,null,null,null,1571,1171]
[null,null,null,null,null,null,null,1572,1172]
[null,null,null,null,null,null,null,1573,1173]
[null,null,null,null,null,null,null,1574,1174]
[null,null,null,null,null,null,null,1575,1175]
[null,null,null,null,null,null,null,1576,1176]
[null,null,null,null,null,null,null,1577,1177]
[null,null,null,null,null,null,null,1578,1178]
[null,null,null,null,null,null,null,1579,1179]
[null,null,null,null,null,null,null,1580,1180]
[null,null,null,null,null,null,null,1581,1181]
[null,null,null,null,null,null,null,1582,1182]
[null,null,null,null,null,null,null,1583,1183]
[null,null,null,null,null,null,null,1584,1184]
[null,null,null,null,null,null,null,1585,1185]
[null,null,null,null,null,null,null,1586,1186]
[null,null,null,null,null,null,null,1587,1187]
[null,null,null,null,null,null,null,1588,1188]
[null,null,null,null,null,null,null,1589,1189]
[null,null,null,null,null,null,null,1590,1190]
[null,null,null,null,null,null,null,1591,1191]
[null,null,null,null,null,null,null,1592,1192]
[null,null,null,null,null,null,null,1593,1193]
[null,null,null,null,null,null,null,1594,1194]
[null,null,null,null,null,null,null,1595,1195]
[null,null,null,null,null,null,null,1596,1196]
[null,null,null,null,null,null,null,1597,1197]
[null,null,null,null,null,null,null,1598,1198]
[null,null,null,null,null,null,null,1599,1199]
[null,null,null,null,null,null,null,1600,1200]
[null,null,null,null,null,null,null,1601,1201]
[null,null,null,null,null,null,null,1602,1202]
[null,null,null,null,null,null,null,1603,1203]
[null,null,null,null,null,null,null,1604,1204]
[null,null,null,null,null,null,null,1605,1205]
[null,null,null,null,null,null,null,1606,1206]
[null,null,null,null,null,null,null,1607,1207]
[null,null,null,null,null,null,null,1608,1208]
[null,null,null,null,null,null,null,1609,1209]
[null,null,null,null,null,null,null,1610,1210]
[null,null,null,null,null,null,null,1611,1211]
[null,null,null,null,null,null,null,1612,1212]
[null,null,null,null,null,null,null,1613,1213]
[null,null,null,null,null,null,null,1614,1214]
[null,null,null,null,null,null,null,1615,1215]
[null,null,null,null,null,null,null,1616,1216]
[null,null,null,null,null,null,null,1617,1217]
[null,null,null,null,null,null,null,1618,1218]
[null,null,null,null,null,null,null,1619,1219]
[null,null,null,null,null,null,null,1620,1220]
[null,null,null,null,null,null,null,1621,1221]
[null,null,null,null,null,null,null,1622,1222]
[null,null,null,null,null,null,null,1623,1223]
[null,null,null,null,null,null,null,1624,1224]
[null,null,null,null,null,null,null,1625,1225]
[null,null,null,null,null,null,null,1626,1226]
[null,null,null,null,null,null,null,1627,1227]
[null,null,null,null,null,null,null,1628,1228]
[null,null,null,null,null,null,null,1629,1229]
[null,null,null,null,null,null,null,1630,1230]
[null,null,null,null,null,null,null,1631,1231]
[null,null,null,null,null,null,null,1632,1232]
[null,null,null,null,null,null,null,1633,1233]
[null,null,null,null,null,null,null,1634,1234]
[null,null,null,null,null,null,null,1635,1235]
[null,null,null,null,null,null,null,1636,1236]
[null,null,null,null,null,null,null,1637,1237]
[null,null,null,null,null,null,null,1638,1238]
[null,null,null,null,null,null,null,1639,1239]
[null,null,null,null,null,null,null,1640,1240]
[null,null,null,null,null,null,null,1641,1241]
[null,null,null,null,null,null,null,1642,1242]
[null,null,null,null,null,null,null,1643,1243]
[null,null,null,null,null,null,null,1644,1244]
[null,null,null,null,null,null,null,1645,1245]
[null,null,null,null,null,null,null,1646,1246]
[null,null,null,null,null,null,null,1647,1247]
[null,null,null,null,null,null,null,1648,1248]
[null,null,null,null,null,null,null,1649,1249]
[null,null,null,null,null,null,null,1650,1250]
[null,null,null,null,null,null,null,1651,1251]
[null,null,null,null,null,null,null,1652,1252]
[null,null,null,null,null,null,null,1653,1253]
[null,null,null,null,null,null,null,1654,1254]
[null,null,null,null,null,null,null,1655,1255]
[null,null,null,null,null,null,null,1656,1256]
[null,null,null,null,null,null,null,1657,1257]
[null,null,null,null,null,null,null,1658,1258]
[null,null,null,null,null,null,null,1659,1259]
[null,null,null,null,null,null,null,1660,1260]
[null,null,null,null,null,null,null,1661,1261]
[null,null,null,null,null,null,null,1662,1262]
[null,null,null,null,null,null,null,1663,1263]
[null,null,null,null,null,null,null,1664,1264]
[null,null,null,null,null,null,null,1665,1265]
[null,null,null,null,null,null,null,1666,1266]
[null,null,null,null,null,null,null,1667,1267]
[null,null,null,null,null,null,null,1668,1268]
[null,null,null,null,null,null,null,1669,1269]
[null,null,null,null,null,null,null,1670,1270]
[null,null,null,null,null,null,null,1671,1271]
[null,null,null,null,null,null,null,1672,1272]
[null,null,null,null,null,null,null,1673,1273]
[null,null,null,null,null,null,null,1674,1274]
[null,null,null,null,null,null,null,1675,1275]
[null,null,null,null,null,null,null,1676,1276]
[null,null,null,null,null,null,null,1677,1277]
[null,null,null,null,null,null,null,1678,1278]
[null,null,null,null,null,null,null,1679,1279]
[null,null,null,null,null,null,null,1680,1280]
[null,null,null,null,null,null,null,1681,1281]
[null,null,null,null,null,null,null,1682,1282]
[null,null,null,null,null,null,null,1683,1283]
[null,null,null,null,null,null,null,1684,1284]
[null,null,null,null,null,null,null,1685,1285]
[null,null,null,null,null,null,null,1686,1286]
[null,null,null,null,null,null,null,1687,1287]
[null,null,null,null,null,null,null,1688,1288]
[null,null,null,null,null,null,null,1689,1289]
[null,null,null,null,null,null,null,1690,1290]
[null,null,null,null,null,null,null,1691,1291]
[null,null,null,null,null,null,null,1692,1292]
[null,null,null,null,null,null,null,1693,1293]
[null,null,null,null,null,null,null,1694,1294]
[null,null,null,null,null,null,null,1695,1295]
[null,null,null,null,null,null,null,1696,1296]
[null,null,null,null,null,null,null,1697,1297]
[null,null,null,null,null,null,null,1698,1298]
[null,null,null,null,null,null,null,1699,1299]
[null,null,null,null,null,null,null,1700,1300]
[null,null,null,null,null,null,null,1701,1301]
[null,null,null,null,null,null,null,1702,1302]
[null,null,null,null,null,null,null,1703,1303]
[null,null,null,null,null,null,null,1704,1304]
[null,null,null,null,null,null,null,1705,1305]
[null,null,null,null,null,null,null,1706,1306]
[null,null,null,null,null,null,null,1707,1307]
[null,null,null,null,null,null,null,1708,1308]
[null,null,null,null,null,null,null,1709,1309]
[null,null,null,null,null,null,null,1710,1310]
[null,null,null,null,null,null,null,1711,1311]
[null,null,null,null,null,null,null,1712,1312]
[null,null,null,null,null,null,null,1713,1313]
[null,null,null,null,null,null,null,1714,1314]
[null,null,null,null,null,null,null,1715,1315]
[null,null,null,null,null,null,null,1716,1316]
[null,null,null,null,null,null,null,1717,1317]
[null,null,null,null,null,null,null,1718,1318]
[null,null,null,null,null,null,null,1719,1319]
[null,null,null,null,null,null,null,1720,1320]
[null,null,null,null,null,null,null,1721,1321]
[null,null,null,null,null,null,null,1722,1322]
[null,null,null,null,null,null,null,1723,1323]
[null,null,null,null,null,null,null,1724,1324]
[null,null,null,null,null,null,null,1725,1325]
[null,null,null,null,null,null,null,1726,1326]
[null,null,null,null,null,null,null,1727,1327]
[null,null,null,null,null,null,null,1728,1328]
[null,null,null,null,null,null,null,1729,1329]
[null,null,null,null,null,null,null,1730,1330]
[null,null,null,null,null,null,null,1731,1331]
[null,null,null,null,null,null,null,1732,1332]
[null,null,null,null,null,null,null,1733,1333]
[null,null,null,null,null,null,null,1734,1334]
[null,null,null,null,null,null,null,1735,1335]
[null,null,null,null,null,null,null,1736,1336]
[null,null,null,null,null,null,null,1737,1337]
[null,null,null,null,null,null,null,1738,1338]
[null,null,null,null,null,null,null,1739,1339]
[null,null,null,null,null,null,null,1740,1340]
[null,null,null,null,null,null,null,1741,1341]
[null,null,null,null,null,null,null,1742,1342]
[null,null,null,null,null,null,null,1743,1343]
[null,null,null,null,null,null,null,1744,1344]
[null,null,null,null,null,null,null,1745,1345]
[null,null,null,null,null,null,null,1746,1346]
[null,null,null,null,null,null,null,1747,1347]
[null,null,null,null,null,null,null,1748,1348]
[null,null,null,null,null,null,null,1749,1349]
[null,null,null,null,null,null,null,1750,1350]
[null,null,null,null,null,null,null,1751,1351]
[null,null,null,null,null,null,null,1752,1352]
[null,null,null,null,null,null,null,1753,1353]
[null,null,null,null,null,null,null,1754,1354]
[null,null,null,null,null,null,null,1755,1355]
[null,null,null,null,null,null,null,1756,1356]
[null,null,null,null,null,null,null,1757,1357]
[null,null,null,null,null,null,null,1758,1358]
[null,null,null,null,null,null,null,1759,1359]
[null,null,null,null,null,null,null,1760,1360]
[null,null,null,null,null,null,null,1761,1361]
[null,null,null,null,null,null,null,1762,1362]
[null,null,null,null,null,null,null,1763,1363]
[null,null,null,null,null,null,null,1764,1364]
[null,null,null,null,null,null,null,1765,1365]
[null,null,null,null,null,null,null,1766,1366]
[null,null,null,null,null,null,null,1767,1367]
[null,null,null,null,null,null,null,1768,1368]
[null,null,null,null,null,null,null,1769,1369]
[null,null,null,null,null,null,null,1770,1370]
[null,null,null,null,null,null,null,1771,1371]
[null,null,null,null,null,null,null,1772,1372]
[null,null,null,null,null,null,null,1773,1373]
[null,null,null,null,null,null,null,1774,1374]
[null,null,null,null,null,null,null,1775,1375]
[null,null,null,null,null,null,null,1776,1376]
[null,null,null,null,null,null,null,1777,1377]
[null,null,null,null,null,null,null,1778,1378]
[null,null,null,null,null,null,null,1779,1379]
[null,null,null,null,null,null,null,1780,1380]
[null,null,null,null,null,null,null,1781,1381]
[null,null,null,null,null,null,null,1782,1382]
[null,null,null,null,null,null,null,1783,1383]
[null,null,null,null,null,null,null,1784,1384]
[null,null,null,null,null,null,null,1785,1385]
[null,null,null,null,null,null,null,1786,1386]
[null,null,null,null,null,null,null,1787,1387]
[null,null,null,null,null,null,null,1788,1388]
[null,null,null,null,null,null,null,1789,1389]
[null,null,null,null,null,null,null,1790,1390]
[null,null,null,null,null,null,null,1791,1391]
[null,null,null,null,null,null,null,1792,1392]
[null,null,null,null,null,null,null,1793,1393]
[null,null,null,null,null,null,null,1794,1394]
[null,null,null,null,null,null,null,1795,1395]
[null,null,null,null,null,null,null,1796,1396]
[null,null,null,null,null,null,null,1797,1397]
[null,null,null,null,null,null,null,1798,1398]
[null,null,null,null,null,null,null,1799,1399]
[null,null,null,null,null,null,null,1800,1400]
[null,null,null,null,null,null,null,1801,1401]
[null,null,null,null,null,null,null,1802,1402]
[null,null,null,null,null,null,null,1803,1403]
[null,null,null,null,null,null,null,1804,1404]
[null,null,null,null,null,null,null,1805,1405]
[null,null,null,null,null,null,null,1806,1406]
[null,null,null,null,null,null,null,1807,1407]
[null,null,null,null,null,null,null,1808,1408]
[null,null,null,null,null,null,null,1809,1409]
[null,null,null,null,null,null,null,1810,1410]
[null,null,null,null,null,null,null,1811,1411]
[null,null,null,null,null,null,null,1812,1412]
[null,null,null,null,null,null,null,1813,1413]
[null,null,null,null,null,null,null,1814,1414]
[null,null,null,null,null,null,null,1815,1415]
[null,null,null,null,null,null,null,1816,1416]
[null,null,null,null,null,null,null,1817,1417]
[null,null,null,null,null,null,null,1818,1418]
[null,null,null,null,null,null,null,1819,1419]
[null,null,null,null,null,null,null,1820,1420]
[null,null,null,null,null,null,null,1821,1421]
[null,null,null,null,null,null,null,1822,1422]
[null,null,null,null,null,null,null,1823,1423]
[null,null,null,null,null,null,null,1824,1424]
[null,null,null,null,null,null,null,1825,1425]
[null,null,null,null,null,null,null,1826,1426]
[null,null,null,null,null,null,null,1827,1427]
[null,null,null,null,null,null,null,1828,1428]
[null,null,null,null,null,null,null,1829,1429]
[null,null,null,null,null,null,null,1830,1430]
[null,null,null,null,null,null,null,1831,1431]
[null,null,null,null,null,null,null,1832,1432]
[null,null,null,null,null,null,null,1833,1433]
[null,null,null,null,null,null,null,1834,1434]
[null,null,null,null,null,null,null,1835,1435]
[null,null,null,null,null,null,null,1836,1436]
[null,null,null,null,null,null,null,1837,1437]
[null,null,null,null,null,null,null,1838,1438]
[null,null,null,null,null,null,null,1839,1439]
[null,null,null,null,null,null,null,1840,1440]
[null,null,null,null,null,null,null,1841,1441]
[null,null,null,null,null,null,null,1842,1442]
[null,null,null,null,null,null,null,1843,1443]
[null,null,null,null,null,null,null,1844,1444]
[null,null,null,null,null,null,null,1845,1445]
[null,null,null,null,null,null,null,1846,1446]
[null,null,null,null,null,null,null,1847,1447]
[null,null,null,null,null,null,null,1848,1448]
[null,null,null,null,null,null,null,1849,1449]
[null,null,null,null,null,null,null,1850,1450]
[null,null,null,null,null,null,null,1851,1451]
[null,null,null,null,null,null,null,1852,1452]
[null,null,null,null,null,null,null,1853,1453]
[null,null,null,null,null,null,null,1854,1454]
[null,null,null,null,null,null,null,1855,1455]
[null,null,null,null,null,null,null,1856,1456]
[null,null,null,null,null,null,null,1857,1457]
[null,null,null,null,null,null,null,1858,1458]
[null,null,null,null,null,null,null,1859,1459]
[null,null,null,null,null,null,null,1860,1460]
[null,null,null,null,null,null,null,1861,1461]
[null,null,null,null,null,null,null,1862,1462]
[null,null,null,null,null,null,null,1863,1463]
[null,null,null,null,null,null,null,1864,1464]
[null,null,null,null,null,null,null,1865,1465]
[null,null,null,null,null,null,null,1866,1466]
[null,null,null,null,null,null,null,1867,1467]
[null,null,null,null,null,null,null,1868,1468]
[null,null,null,null,null,null,null,1869,1469]
[null,null,null,null,null,null,null,1870,1470]
[null,null,null,null,null,null,null,1871,1471]
[null,null,null,null,null,null,null,1872,1472]
[null,null,null,null,null,null,null,1873,1473]
[null,null,null,null,null,null,null,1874,1474]
[null,null,null,null,null,null,null,1875,1475]
[null,null,null,null,null,null,null,1876,1476]
[null,null,null,null,null,null,null,1877,1477]
[null,null,null,null,null,null,null,1878,1478]
[null,null,null,null,null,null,null,1879,1479]
[null,null,null,null,null,null,null,1880,1480]
[null,null,null,null,null,null,null,1881,1481]
[null,null,null,null,null,null,null,1882,1482]
[null,null,null,null,null,null,null,1883,1483]
[null,null,null,null,null,null,null,1884,1484]
[null,null,null,null,null,null,null,1885,1485]
[null,null,null,null,null,null,null,1886,1486]
[null,null,null,null,null,null,null,1887,1487]
[null,null,null,null,null,null,null,1888,1488]
[null,null,null,null,null,null,null,1889,1489]
[null,null,null,null,null,null,null,1890,1490]
[null,null,null,null,null,null,null,1891,1491]
[null,null,null,null,null,null,null,1892,1492]
[null,null,null,null,null,null,null,1893,1493]
[null,null,null,null,null,null,null,1894,1494]
[null,null,null,null,null,null,null,1895,1495]
[null,null,null,null,null,null,null,1896,1496]
[null,null,null,null,null,null,null,1897,1497]
[null,null,null,null,null,null,null,1898,1498]
[null,null,null,null,null,null,null,1899,1499]
[null,null,null,null,null,null,null,1900,1500]
[null,null,null,null,null,null,null,1901]
[null,null,null,null,null,null,null,1902]
[null,null,null,null,null,null,null,1903]
[null,null,null,null,null,null,null,1904]
[null,null,null,null,null,null,null,1905]
[null,null,null,null,null,null,null,1906]
[null,null,null,null,null,null,null,1907]
[null,null,null,null,null,null,null,1908]
[null,null,null,null,null,null,null,1909]
[null,null,null,null,null,null,null,1910]
[null,null,null,null,null,null,null,1911]
[null,null,null,null,null,null,null,1912]
[null,null,null,null,null,null,null,1913]
[null,null,null,null,null,null,null,1914]
[null,null,null,null,null,null,null,1915]
[null,null,null,null,null,null,null,1916]
[null,null,null,null,null,null,null,1917]
[null,null,null,null,null,null,null,1918]
[null,null,null,null,null,null,null,1919]
[null,null,null,null,null,null,null,1920]
[null,null,null,null,null,null,null,1921]
[null,null,null,null,null,null,null,1922]
[null,null,null,null,null,null,null,1923]
[null,null,null,null,null,null,null,1924]
[null,null,null,null,null,null,null,1925]
[null,null,null,null,null,null,null,1926]
[null,null,null,null,null,null,null,1927]
[null,null,null,null,null,null,null,1928]
[null,null,null,null,null,null,null,1929]
[null,null,null,null,null,null,null,1930]
[null,null,null,null,null,null,null,1931]
[null,null,null,null,null,null,null,1932]
[null,null,null,null,null,null,null,1933]
[null,null,null,null,null,null,null,1934]
[null,null,null,null,null,null,null,1935]
[null,null,null,null,null,null,null,1936]
[null,null,null,null,null,null,null,1937]
[null,null,null,null,null,null,null,1938]
[null,null,null,null,null,null,null,1939]
[null,null,null,null,null,null,null,1940]
[null,null,null,null,null,null,null,1941]
[null,null,null,null,null,null,null,1942]
[null,null,null,null,null,null,null,1943]
[null,null,null,null,null,null,null,1944]
[null,null,null,null,null,null,null,1945]
[null,null,null,null,null,null,null,1946]
[null,null,null,null,null,null,null,1947]
[null,null,null,null,null,null,null,1948]
[null,null,null,null,null,null,null,1949]
[null,null,null,null,null,null,null,1950]
[null,null,null,null,null,null,null,1951]
[null,null,null,null,null,null,null,1952]
[null,null,null,null,null,null,null,1953]
[null,null,null,null,null,null,null,1954]
[null,null,null,null,null,null,null,1955]
[null,null,null,null,null,null,null,1956]
[null,null,null,null,null,null,null,1957]
[null,null,null,null,null,null,null,1958]
[null,null,null,null,null,null,null,1959]
[null,null,null,null,null,null,null,1960]
[null,null,null,null,null,null,null,1961]
[null,null,null,null,null,null,null,1962]
[null,null,null,null,null,null,null,1963]
[null,null,null,null,null,null,null,1964]
[null,null,null,null,null,null,null,1965]
[null,null,null,null,null,null,null,1966]
[null,null,null,null,null,null,null,1967]
[null,null,null,null,null,null,null,1968]
[null,null,null,null,null,null,null,1969]
[null,null,null,null,null,null,null,1970]
[null,null,null,null,null,null,null,1971]
[null,null,null,null,null,null,null,1972]
[null,null,null,null,null,null,null,1973]
[null,null,null,null,null,null,null,1974]
[null,null,null,null,null,null,null,1975]
[null,null,null,null,null,null,null,1976]
[null,null,null,null,null,null,null,1977]
[null,null,null,null,null,null,null,1978]
[null,null,null,null,null,null,null,1979]
[null,null,null,null,null,null,null,1980]
[null,null,null,null,null,null,null,1981]
[null,null,null,null,null,null,null,1982]
[null,null,null,null,null,null,null,1983]
[null,null,null,null,null,null,null,1984]
[null,null,null,null,null,null,null,1985]
[null,null,null,null,null,null,null,1986]
[null,null,null,null,null,null,null,1987]
[null,null,null,null,null,null,null,1988]
[null,null,null,null,null,null,null,1989]
[null,null,null,null,null,null,null,1990]
[null,null,null,null,null,null,null,1991]
[null,null,null,null,null,null,null,1992]
[null,null,null,null,null,null,null,1993]
[null,null,null,null,null,null,null,1994]
[null,null,null,null,null,null,null,1995]
[null,null,null,null,null,null,null,1996]
[null,null,null,null,null,null,null,1997]
[null,null,null,null,null,null,null,1998]
[null,null,null,null,null,null,null,1999]
[null,null,null,null,null,null,null,2000]